Workbook

Sheet Caratula
C29: INFORME DE LOS ESTADOS FINANCIEROS INTERMEDIOS POR EL PERIODO FINALIZADO EL 31 DE MARZO DE 2020

Sheet Indice
B3: Sociedad: | C3: PASFIN S.A.E.C.A.
A6: Fecha Presentación: | B6: 2020-03-31
C9: INDICE | D9: REF.
B10: Informacion General
C11: Descripción de la naturaleza y del negocio de la Sociedad | D11: Nota 1
C12: Resumen de las principales políticas contables | D12: Nota 2
B13: Estado de Situación Patrimonial | D13: BG
B14: Estado de Resultados | D14: ER
B15: Estado de Evolución del Patrimonio Neto | D15: EVPN
B16: Estado de Flujos de Efectivo | D16: EFE
C17: Efectivo y equivalente de efectivo | D17: Nota 3
C18: Inversiones temporales | D18: Nota 4
C19: Cartera de créditos | D19: Nota 5
C20: Otros créditos | D20: Nota 6
C21: Inventarios | D21: Nota 7
C22: Inversión en asociadas | D22: Nota 8
C23: Propiedades, planta y equipo | D23: Nota 9
C24: Activos disponibles para la venta | D24: Nota 10
C25: Activos intangibles | D25: Nota 11
C26: Goodwill | D26: Nota 12
C27: Cuentas por pagar comerciales | D27: Nota 13
C28: Préstamos a corto y largo plazo | D28: Nota 14
C29: Porción corriente de la deuda a largo plazo | D29: Nota 15
C30: Remuneraciones y cargas sociales a pagar | D30: Nota 16
C31: Impuestos a pagar | D31: Nota 17
C32: Provisiones | D32: Nota 18
C33: Otros pasivos | D33: Nota 19
C34: Capital integrado | D34: Nota 20
C35: Reserva de revalúo | D35: Nota 21
C36: Reserva legal | D36: Nota 21
C37: Reservas estatutarias | D37: Nota 21
C38: Reservas facultativas | D38: Nota 21
C39: Diferencia transitoria por conversión | D39: Nota 22
C40: Resultados acumulados | D40: Nota 23
C41: Interés minoritario | D41: Nota 24
C42: Ventas | D42: Nota 25
C43: Costo de ventas | D43: Nota 26
C44: Gastos de ventas | D44: Nota 27
C45: Gastos administrativos | D45: Nota 27
C46: Otros ingresos y gastos | D46: Nota 28
C47: Ingresos financieros - neto | D47: Nota 29
C48: Gastos financieros - neto | D48: Nota 29
C49: Resultado de inversiones en asociadas | D49: Nota 30
C50: Resultado participación minoritaria | D50: Nota 31
C51: Impuesto a la renta | D51: Nota 32
C52: Resultado extraordinario neto de impuesto a la renta | D52: Nota 33
C53: Resultado sobre actividades discontinuadas neto de impuesto a la renta | D53: Nota 34
C54: Utilidad/(Pérdida) neta del año y por acción ordinaria | D54: Nota 35
B55: Otras Notas de los Estados Financieros
C56: Activos gravados | D56: Nota 36
C57: Contingencias y compromisos | D57: Nota 37
C58: Impuesto diferido | D58: Nota 38
C59: Hechos posteriores | D59: Nota 39
C60: Saldos y transacciones con partes relacionadas | D60: Nota 40

Sheet BG
A1: =Indice!C3 -> PASFIN S.A.E.C.A. | E1: Indice
A4: ESTADO DE SITUACION PATRIMONIAL
A5: =IFERROR(IF(Indice!B6="","Al dia... de mes… de año 2XX2…","Al "&DAY(Indice!B6)&" de "&VLOOKUP(MONTH(Indice!B6),Indice!S:T,2,0)&" de "&YEAR(Indice!B6)),"Al dia... de mes… de año 2XX2…") -> Al dia... de mes… de año 2XX2…
B6: Comparativo con el ejercicio anterior
A7: (Cifras expresadas en guaraníes)
E9: Nota | F9: 2020-03-01 | G9: 2019-12-01
B10: ACTIVOS
B11: Activos Corrientes
C12: Efectivo y equivalente de efectivo | E12: 3 | F12: ='Nota 3'!C16 -> 4338177201 | G12: ='Nota 3'!D16 -> 20886433456
C13: Inversiones temporales | E13: 4 | F13: ='Nota 4'!B14 -> 3965856000 | G13: ='Nota 4'!C14 -> 45000000
C14: Cartera de créditos | E14: 5 | F14: ='Nota 5'!C15 -> 279578593284 | G14: ='Nota 5'!D15 -> 296632593813
C15: Otros créditos | E15: 6 | F15: ='Nota 6'!B19 -> 6946688472 | G15: ='Nota 6'!C19 -> 3121533672
C16: Inventarios | E16: 7 | F16: ='Nota 7'!B15 -> 0 | G16: ='Nota 7'!C15 -> 0
C17: Total activos corrientes | F17: =SUM(F12:F16) -> 294829314957 | G17: =SUM(G12:G16) -> 320685560941
B18: Activos no Corrientes
C19: Inversiones temporales | E19: 4 | F19: ='Nota 4'!B21 -> 210000000 | G19: ='Nota 4'!C21 -> 320000000
C20: Cartera de créditos | E20: 5 | F20: ='Nota 5'!C27 -> 63783760462 | G20: ='Nota 5'!D27 -> 51917623134
C21: Otros créditos | E21: 6 | F21: ='Nota 6'!B25 -> 38000000 | G21: ='Nota 6'!C25 -> 38000000
C22: Inversión en asociadas | E22: 8 | F22: ='Nota 8'!B8 -> 150000000 | G22: ='Nota 8'!C8 -> 150000000
C23: Propiedades, planta y equipo/Bienes de uso, neto | E23: 9 | F23: ='Nota 9'!L17 -> 1995071857 | G23: ='Nota 9'!M17 -> 1925854584
C24: Activos disponibles para la venta | E24: 10 | F24: ='Nota 10'!B11 -> 23415966379 | G24: ='Nota 10'!C11 -> 21503939176
C25: Activos intangibles | E25: 11 | F25: ='Nota 11'!B10 -> 4269181100 | G25: ='Nota 11'!C10 -> 4240927495
C26: Goodwill | E26: 12 | F26: ='Nota 12'!B11 -> 0 | G26: ='Nota 12'!C11 -> 0
C27: Activo por impuesto diferido | E27: 38 | F27: ='Nota 38'!D34 -> 2845737 | G27: ='Nota 38'!F34 -> 2845737
C28: Total activos no corrientes | F28: =SUM(F19:F27) -> 93864825535 | G28: =SUM(G19:G27) -> 80099190126
B29: Total Activos | F29: =+F17+F28 -> 388694140492 | G29: =+G17+G28 -> 400784751067
B30: PASIVOS Y PATRIMONIO NETO
B31: Pasivos corrientes | F31: -1
C32: Cuentas por pagar comerciales | E32: 13 | F32: ='Nota 13'!D11 -> 354703648 | G32: ='Nota 13'!E11 -> 1605590749
C33: Préstamos a corto plazo | E33: 14 | F33: ='Nota 14'!E91 -> 102792336688 | G33: ='Nota 14'!K91 -> 114325411973
C34: Porción corriente de la deuda a largo plazo | E34: 15 | F34: ='Nota 15'!B14 -> 0 | G34: ='Nota 15'!C14 -> 0
C35: Remuneraciones y cargas sociales a pagar | E35: 16 | F35: ='Nota 16'!B10 -> 131970583 | G35: ='Nota 16'!C10 -> 64453412
C36: Impuestos a pagar | E36: 17 | F36: ='Nota 17'!B11 -> 1321958127 | G36: ='Nota 17'!C11 -> 811270137
C37: Provisiones | E37: 18 | F37: ='Nota 18'!B13 -> 0 | G37: ='Nota 18'!C13 -> 0
C38: Otros pasivos corrientes | E38: 19 | F38: ='Nota 19'!B11 -> 4278601137 | G38: ='Nota 19'!C11 -> 455986873
C39: Total Pasivos Corrientes | F39: =+F32+F33+F34+F35+F36+F38 -> 108879570183 | G39: =SUM(G32:G38) -> 117262713144
B40: Pasivos no corrientes
C41: Préstamos a largo plazo | E41: 14 | F41: ='Nota 14'!E138 -> 156439456266 | G41: ='Nota 14'!K138 -> 162044149219
C42: Otros pasivos no corrientes | E42: 19 | F42: 0 | G42: 0
C43: Total pasivos no corrientes | F43: =SUM(F41:F42) -> 156439456266 | G43: =SUM(G41:G42) -> 162044149219
B44: Total Pasivos | F44: =+F39+F43 -> 265319026449 | G44: =+G39+G43 -> 279306862363
B45: Patrimonio Neto
C46: Capital integrado | E46: 20 | F46: ='Nota 20'!B12 -> 98961000000 | G46: ='Nota 20'!C12 -> 98910000000
C47: Reserva de revalúo | E47: 21 | F47: =' Nota 21'!B8 -> 383681070 | G47: =' Nota 21'!C8 -> 383681070
C48: Reserva legal | E48: 21 | F48: =' Nota 21'!B13 -> 3782180262 | G48: =' Nota 21'!C13 -> 3782180262
C49: Reservas estatutarias | E49: 21 | F49: 0 | G49: 0
C50: Reservas facultatitvas | E50: 21 | F50: =' Nota 21'!B16 -> 4100000000 | G50: =' Nota 21'!C16 -> 4100000000
C51: Diferencia transitoria por conversión | E51: 22 | F51: ='Nota 22'!B8 -> 0 | G51: ='Nota 22'!C8 -> 0
C52: Resultados acumulados | E52: 23 | F52: ='Nota 23'!B8 -> 14302027372 | G52: ='Nota 23'!C8 -> 4170698
C53: Resultado del ejercicio | E53: 23 | F53: ='Nota 23'!B9 -> 1846225339 | G53: ='Nota 23'!C9 -> 14297856674
C54: Subtotal | F54: =SUM(F46:F53) -> 123375114043 | G54: =SUM(G46:G53) -> 121477888704
C55: Interés minoritario | E55: 24 | F55: ='Nota 24'!B8 -> 0 | G55: ='Nota 24'!C8 -> 0
B56: Total Patrimonio Neto | F56: =F54 -> 123375114043 | G56: =G54 -> 121477888704
B57: Total Pasivos y Patrimonio Neto | F57: =+F44+F56 -> 388694140492 | G57: =+G44+G56 -> 400784751067
B59: Las notas que se acompañan forman parte integrante de estos estados financieros.

Sheet ER
A1: =Indice!C3 -> PASFIN S.A.E.C.A. | B1: Indice
A4: ESTADO DE RESULTADOS
A5: =IFERROR(IF(Indice!B6="","Al dia... de mes… de año 2XX2…","Al "&DAY(Indice!B6)&" de "&VLOOKUP(MONTH(Indice!B6),Indice!S:T,2,0)&" de "&YEAR(Indice!B6)),"Al dia... de mes… de año 2XX2…") -> Al dia... de mes… de año 2XX2…
A6: Comparativo con igual período del año anterior
A7: (Cifras expresadas en guaraníes)
B9: Nota | C9: 2020-03-01 | D9: 2019-03-01
A10: Ventas | B10: 25 | C10: ='Nota 25'!B15 -> 21149869063 | D10: ='Nota 25'!C15 -> 28627750294
A11: Costo de ventas | B11: 26 | C11: =-'Nota 26'!B13 -> -10921316948 | D11: =-'Nota 26'!C13 -> -10173106991
A12: Utilidad bruta | C12: =C10+C11 -> 10228552115 | D12: =D10+D11 -> 18454643303
A13: Gastos de ventas | B13: 27 | C13: =-'Nota 27'!B29 -> -373910936 | D13: =-'Nota 27'!E29 -> -409066299
A14: Gastos administrativos | B14: 27 | C14: =-'Nota 27'!C29 -> -7231835759 | D14: =-'Nota 27'!F29 -> -11343781603
A15: Resultado operativo | C15: =SUM(C12:C14) -> 2622805420 | D15: =SUM(D12:D14) -> 6701795401
A16: Otros ingresos | B16: 28 | C16: ='Nota 28'!B14 -> 4882833064 | D16: ='Nota 28'!C14 -> 7953608232
A17: Otros gastos | B17: 28 | C17: =-'Nota 28'!B21 -> -5051595942 | D17: =-'Nota 28'!C21 -> -5940826412
A18: Gastos financieros | B18: 29 | C18: =-'Nota 29'!B9 -> -351998435 | D18: =-'Nota 29'!C9 -> -460978872
A19: Resultado de inversiones en asociadas | B19: 30 | C19: ='Nota 30'!B12 -> 0 | D19: ='Nota 30'!C12 -> 0
A20: Resultados ordinarios antes de impuesto a la renta y participación minoritaria | C20: =SUM(C15:C19) -> 2102044107 | D20: =SUM(D15:D19) -> 8253598349
A21: Resultado participación minoritaria | B21: 31 | C21: ='Nota 31'!B12 -> 0 | D21: ='Nota 31'!C12 -> 0
A22: Resultado ordinario antes del impuesto a la renta | C22: =SUM(C20) -> 2102044107 | D22: =SUM(D20) -> 8253598349
A23: Impuesto a la renta | B23: 32 | C23: =-'Nota 32'!B9 -> -255818768 | D23: =-'Nota 32'!C9 -> -1004462919
A24: Resultado neto de actividades ordinarias | C24: =C22+C23 -> 1846225339 | D24: =D22+D23 -> 7249135430
A25: Resultado extraordinario neto de impuesto a la renta | B25: 33 | C25: ='Nota 33'!B12 -> 0 | D25: ='Nota 33'!C12 -> 0
A26: Resultado sobre actividades discontinuadas neto de impuesto a la renta | B26: 34 | C26: ='Nota 34'!B12 -> 0 | D26: ='Nota 34'!C12 -> 0
A27: Utilidad neta del año | C27: =C24+C25+C26 -> 1846225339 | D27: =D24+D25+D26 -> 7249135430
A28: Utilidad neta por acción ordinaria | B28: 35 | C28: ='Nota 35'!B10 -> 44168.07031 | D28: ='Nota 35'!C10 -> 261673.3
A31: Las notas que se acompañan forman parte integrante de estos estados financieros.

Sheet EVPN
A1: =Indice!C3 -> PASFIN S.A.E.C.A. | H1: Indice
F4: ESTADO DE EVOLUCIÓN DEL PATRIMONIO NETO
F5: =IFERROR(IF([16]Indice!D6="","Al dia... de mes… de año 2XX2…","Al "&DAY([16]Indice!D6)&" de "&VLOOKUP(MONTH([16]Indice!D6),[16]Indice!S:T,2,0)&" de "&YEAR([16]Indice!D6)),"Al dia... de mes… de año 2XX2…") -> Al 31 de Marzo de 2020
F6: Comparativo con igual periodo del año anterior
F7: (Cifras expresadas en guaraníes)
C10: Aporte de los propietarios | H10: Reservas | L10: Ganancias reservadas | S10: Total
C11: Capital suscripto e integrado | D11: Aporte para | F11: Primas de emisión | H11: Reserva de revalúo | J11: Reserva de revalúo técnico | L11: Reserva legal | N11: Reserva facultativa | P11: Resultados acumulados | Q11: Resultados del ejercicio
D12: aumento de capital | P12: Total | Q12: Total
A14: Saldo al 31 de Diciembre 2018 | C14: 77703000000 | F14: 0 | H14: 33918855 | J14: 0 | L14: 3029661490 | N14: 0 | P14: 4166188 | Q14: 23495638570 | S14: =SUM(C14:R14) -> 104266385103
A15: Cambio en política contable | C15: 0 | F15: 0 | H15: 0 | J15: 0 | L15: 0 | N15: 0 | P15: 0 | Q15: 0
A16: Saldo reestructurado | C16: =SUM(C14:C15) -> 77703000000 | F16: =SUM(F14:F15) -> 0 | H16: =SUM(H14:H15) -> 33918855 | J16: =SUM(J14:J15) -> 0 | L16: =SUM(L14:L15) -> 3029661490 | N16: =SUM(N14:N15) -> 0 | P16: =SUM(P14:P15) -> 4166188 | Q16: =SUM(Q14:Q15) -> 23495638570 | S16: =SUM(S14:S15) -> 104266385103
A17: Distribución de dividendos s/Acta de Asamblea Ordinaria | C17: 0 | F17: 0 | H17: 0 | J17: 0 | L17: 0 | N17: 0 | P17: 0 | Q17: 0 | S17: 0
A18: Transferencia a resultado acumulado | C18: 0 | F18: 0 | H18: 0 | J18: 0 | L18: 0 | N18: 0 | P18: 23495638570 | Q18: -23495638570 | S18: =SUM(C18:R18) -> 0
A19: Integración del capital social | C19: 0 | F19: 0 | H19: 0 | J19: 0 | L19: 0 | N19: 0 | P19: 0 | Q19: 0 | S19: 0
A20: Reducción del capital social s/Acta de Asamblea General | C20: 0 | F20: 0 | H20: 0 | J20: 0 | L20: 0 | N20: 0 | P20: 0 | Q20: 0 | S20: 0
A21: Revalúo de activos fijos | C21: 0 | F21: 0 | H21: 0 | J21: 0 | L21: 0 | N21: 0 | P21: 0 | Q21: 0 | S21: 0
A22: Revalúo técnico | C22: 0 | F22: 0 | H22: 0 | J22: 0 | L22: 0 | N22: 0 | P22: 0 | Q22: 0 | S22: 0
A23: Resultado del año | C23: 0 | F23: 0 | H23: 0 | J23: 0 | L23: 0 | N23: 0 | P23: 0 | Q23: =+[16]ER!D33 -> 7249135430 | S23: =SUM(C23:R23) -> 7249135430
A25: =IFERROR(IF([16]Indice!D6="","Saldo al .. de de 20X1 ","Saldo al "&DAY([16]Indice!D6)&" de "&VLOOKUP(MONTH([16]Indice!D6),[16]Indice!S:T,2,0)&" de "&YEAR([16]Indice!D6-365)),"Saldo al .. de de 20X1 ") -> Saldo al 31 de Marzo de 2019 | C25: =C16+C17+C19+C20+C21+C22+C23 -> 77703000000 | D25: =SUM(D14:D23) -> 0 | F25: =F16+F17+F19+F20+F21+F22+F23 -> 0 | G25: =SUM(G14:G24) -> 0 | H25: =H16+H17+H19+H20+H21+H22+H23 -> 33918855 | J25: =J16+J17+J19+J20+J21+J22+J23 -> 0 | L25: =L16+L17+L19+L20+L21+L22+L23 -> 3029661490 | N25: =N16+N17+N19+N20+N21+N22+N23 -> 0 | P25: =P16+P17+P19+P20+P21+P22+P23+P18 -> 23499804758 | Q25: =Q16+Q18+Q19+Q20+Q21+Q22+Q23 -> 7249135430 | S25: =S16+S17+S19+S20+S21+S22+S23 -> 111515520533
A27: Saldo al 31 de Diciembre 2019 | C27: 98910000000 | F27: 0 | H27: 383681070 | J27: 0 | L27: 3782180262 | N27: 4100000000 | P27: 4170698 | Q27: 14297856674 | S27: =SUM(C27:R27) -> 121477888704
A28: Distribución de dividendos s/Acta de Asamblea General Ordinaria | C28: 0 | F28: 0 | H28: 0 | J28: 0 | L28: 0 | N28: 0 | P28: 0 | Q28: 0 | S28: 0
A29: Transferencia a resultado acumulado | C29: 0 | F29: 0 | H29: 0 | J29: 0 | L29: 0 | N29: 0 | P29: 14297856674 | Q29: -14297856674 | S29: =SUM(C29:R29) -> 0
A30: Integración de capital social | C30: 51000000 | F30: 0 | H30: 0 | J30: 0 | L30: 0 | N30: 0 | P30: 0 | Q30: 0 | S30: =SUM(C30:R30) -> 51000000
A31: Revalúo de activos fijos | C31: 0 | F31: 0 | H31: 0 | J31: 0 | L31: 0 | N31: 0 | P31: 0 | Q31: 0 | S31: 0
A32: Desafectación de la reserva de revalúo técnico | C32: 0 | F32: 0 | H32: 0 | J32: 0 | L32: 0 | N32: 0 | P32: 0 | Q32: 0 | S32: 0
A33: Resultado del año | C33: 0 | F33: 0 | H33: 0 | J33: 0 | L33: 0 | N33: 0 | P33: 0 | Q33: =+[16]ER!C33 -> 1846225339 | S33: =SUM(C33:R33) -> 1846225339
A35: =IFERROR(IF([16]Indice!D6="","Saldo al .. de de 20X2 ","Saldo al "&DAY([16]Indice!D6)&" de "&VLOOKUP(MONTH([16]Indice!D6),[16]Indice!S:T,2,0)&" de "&YEAR([16]Indice!D6)),"Saldo al .. de de 20X2 ") -> Saldo al 31 de Marzo de 2020 | C35: =C27+C28+C30+C31+C32+C33 -> 98961000000 | D35: =SUM(D25:D33) -> 0 | F35: =F25+F28+F31+F32+F33 -> 0 | H35: =H27+H28+H31+H32+H33 -> 383681070 | J35: =J25+J28+J31+J32+J33 -> 0 | L35: =L27+L28+L31+L32+L33 -> 3782180262 | N35: =N27+N28+N31+N32+N33 -> 4100000000 | P35: =P27+P28+P29+P31+P32+P33 -> 14302027372 | Q35: =Q27+Q28+Q29+Q31+Q32+Q33 -> 1846225339 | S35: =S27+S28+S31+S32+S33+S30 -> 123375114043
A38: Las notas que se acompañan forman parte integrante de estos estados financieros.

Sheet EFE
A1: =Indice!C3 -> PASFIN S.A.E.C.A.
A5: ESTADO DE FLUJOS DE EFECTIVO
A6: =IFERROR(IF(Indice!B6="","Al dia... de mes… de año 2XX2…","Al "&DAY(Indice!B6)&" de "&VLOOKUP(MONTH(Indice!B6),Indice!S:T,2,0)&" de "&YEAR(Indice!B6)),"Al dia... de mes… de año 2XX2…") -> Al dia... de mes… de año 2XX2…
A7: Comparativo con igual periodo del año anterior
A8: (Cifras expresadas en guaraníes)
B11: 2020-03-01 | C11: 2019-03-01
A13: FLUJO DE EFECTIVO DE ACTIVIDADES OPERATIVAS
A14: Cobranzas efectuadas a clientes | B14: 21149869063 | C14: 28627750294
A15: Financiación a clientes | B15: 5187863201 | C15: -35986203118
A16: Pagos efectuados a proveedores y empleados | B16: -13632444720 | C16: -11959371599
A17: Pagos de impuesto a la renta | B17: -345067579 | C17: -223834554
A18: Flujo neto de efectivo de actividades operativas | B18: =SUM(B14:B17) -> 12360219965 | C18: =SUM(C14:C17) -> -19541658977
A20: FLUJO DE EFECTIVO DE ACTIVIDADES DE INVERSIÓN
A21: Adquisición de bienes de uso e intangibles | B21: -379109753 | C21: -265708700
A22: Flujo neto de efectivo de actividades de inversión | B22: =SUM(B21:B21) -> -379109753 | C22: =SUM(C21:C21) -> -265708700
A24: FLUJO DE EFECTIVO DE ACTIVIDADES DE FINANCIACIÓN
A25: (Disminución) Incremento de préstamos | B25: -28802806912 | C25: 7539506282
A26: Aportes de capital recibidos | B26: 51000000 | C26: 0
A27: Gastos financieros | B27: -351317267 | C27: -1435443222
A28: Flujo neto de efectivo de actividades de financiamiento | B28: =B25+B26+B27 -> -29103124179 | C28: =C25+C26+C27 -> 6104063060
A30: (Disminución) Incremento neto de efectivo | B30: =B28+B22+B18 -> -17122013967 | C30: =C28+C22+C18 -> -13703304617
A31: Efecto estimado de la diferencia de cambio sobre el saldo de efectivo | B31: 573757712 | C31: 245246178
A32: Efectivo al principio del año | B32: 20886433456 | C32: 33970211933
A34: Efectivo al final del periodo | B34: =+SUM(B30:B32) -> 4338177201 | C34: =+SUM(C30:C32) -> 20512153494
A36: Las notas que se acompañan forman parte integrante de estos estados financieros.

Sheet Nota 1
A1: =Indice!C3 -> PASFIN S.A.E.C.A. | I1: BG
A4: NOTAS A LOS ESTADOS FINANCIEROS POR EL PERIODO FINALIZADO EL 31 DE MARZO DE 2020
A5: Balance General: Correspondiente al periodo finalizado el 31 de marzo de 2020, presentado en forma comparativa con el ejercicio finalizado el 31 de diciembre de 2019
A6: Estado de Resultados: Correspondiente al periodo finalizado el 31 de marzo de 2020, presentado en forma comparativa con el periodo finalizado el 31 de marzo de 2019
A9: NOTA 1 – DESCRIPCIÓN DE LA NATURALEZA Y DEL NEGOCIO DE LA COMPAÑÍA
A10: Denominación: | B10: PASFIN S.A.E.C.A.
A11: Domicilio Legal: | B11: Avda. Santa Teresa N° 2106 e/ Aviadores del Chaco y Herminio Maldonado. Torres del Paseo - Torre 1 piso 1. Asunción - Paraguay
A12: Actividad Principal: | B12: Otorgar anticipos sobre créditos provenientes de ventas a plazo, asumir sus riesgos, mediante la compra de facturas, créditos, hipotecas, bonos, valores y documentos en general, realizar descuentos de facturas; gestionar su cobro y prestar asistencia técnica administrativa. Así también podrá dar préstamos en moneda nacional y/o extranjera con o sin intereses, financiamiento en general de toda clase de créditos con cualquiera de las seguridades previstas por la legislación, con o sin garantía.
A13: La entidad fue constituida bajo la forma jurídica de Sociedad Anónima con la denominación de Acciona S.A., según Escritura Pública Nº 45 de fecha 06 de abril del año 2010. En el año 2011 fue modificada con la denominación de PASFIN S.A. según Escritura Publica Nº 40 de fecha 06 de mayo de 2011 fijando domicilio legal en la ciudad de Asunción, Capital del Paraguay. En dicho acto se establece la primera integración de Capital de la S.A. que se realiza de la siguiente manera: a) Con el Capital de Acciona S.A. que posee conforme al Balance General al 31 de Diciembre de 2010, un Capital de Gs. 100.000.000 (Guaraníes cien millones) que fue integrado en su totalidad. El plazo de duración de la Entidad fue establecida en noventa y nueve (99) años y tiene por Objeto ejecutar por cuenta propia y/o terceros, toda clase de actividades comerciales, industriales, mercantiles, de importación, exportación, compra-venta y comercialización de mercaderías y productos, representaciones, comisiones, consignaciones y mandatos comerciales, servicios en general y cualquier acto y operación comercial o civil lícito que se relacione directamente o indirectamente con sus actividades sociales. Según Escritura Pública Nº 45 de fecha 06 de Abril del año 2010, queda formalizada la emisión de 100 Acciones, cada serie de acciones consta de cien (100) acciones de Guaraníes un millón (Gs.1.000.000) y el valor de cada serie emitida es de Guaraníes cincuenta millones (Gs. 50.000.000) que hacen un total de cien millones de guaraníes (Gs. 100.000.000). Según Escritura Pública Nº 40 de fecha 06 del mes de Mayo de 2011, se modifica el Artículo 5º y queda autorizado el aumento de Capital Social a la suma de Mil Millones de Guaraníes (Gs. 1.000.000.000) representado por 1000 acciones nominativas o al portador con derecho a un voto por acción, numeradas del uno al mil con un valor nominal de un millón de guaraníes (Gs. 1.000.000) cada una y distribuidas en 20 series. Mediante Escritura Publica Nº 142, de fecha 25 de Julio de 2014, a través del cual fue aumentado el Capital Social y modificada la denominación Social y el Estatuto Social, quedando con la denominación de Pasfin S.A.E.C.A, queda autorizado el aumento del Capital social a la suma de Gs. 6.000.000.000 (guaraníes seis mil millones), representado por 2000 acciones Ordinarias de Voto Múltiple, con derecho a 5 votos por acción, 2.000 acciones Ordinarias de Voto simple, con un voto por acción y 2.000 acciones Preferidas, sin derecho a voto. Las mismas serán agrupadas en series de Guaraníes Cien Millones (Gs. 100.000.000). Cada serie estará compuesta de cien (100) Acciones. El Capital Social autorizado queda fijado en la suma de seis mil millones de Guaraníes (Gs. 6.000.000.000) y el primer Directorio queda constituido de la siguiente forma: Presidente: Luis Augusto Montanaro Bedoya; Vicepresidente: Alejandro Omar Codas Laterza; Director Titular: Marcelo Campuzano Yaluk; Síndico Titular: Abg. Guillermo Ehrecke; Síndico Suplente: José Santiviago. Según Escritura Pública Nº 55, de fecha 12 de agosto de 2016 se modifica el Artículo 4º del Objeto Social con el fin de adecuarlo a las necesidades de la compañía, queda autorizado el aumento del Capital Social a Gs 50.000.000.000 (guaraníes cincuenta mil millones) representada por 15.000 Acciones Ordinarias de voto múltiple, 15.000 Acciones Ordinarias de voto simple, 2000 Acciones preferidas clase A, 6.000 Acciones preferidas clase B y 12.000 Acciones preferidas clase C.- Según Acta de Asamblea General Extraordinaria N° 14/17 de fecha 25/04/17 se aprueba la modificación de los Estatutos Sociales y el aumento del Capital Social a G. 55.000.000.000 (guaraníes cincuenta y cinco mil millones) formalizado por Escritura N° 25 de fecha 2 de marzo de 2018, inscripta en el Registro Público de Comercio bajo el N° 004, Folio 48-60, de fecha 13 de abril de 2018. Modificación de los Estatutos Sociales, aprobada por Acta de Asamblea General Extraordinaria N° 22/18 de fecha 19/04/18 por la cual se establece el aumento del Capital Social a G. 100.000.000.000 (guaraníes cien mil millones) según Escritura N° 19 de fecha 13/07/2018 Inscripta en el Registro Público de Comercio bajo el N° 05 folio 61 y siguiente de fecha 17/08/2018. Por Escritura Pública N° 4 de fecha 15/02/19 se realizó la transcripción del Acta de Asamblea Extraordinaria N° 17/2019 de fecha 23/01/19, Modificación de Estatuto Social y Emisión de Acciones, aumentado el capital social a Gs. 250.000.000.000 (guaraníes doscientos cincuenta mil millones) inscripta en el Registro Público de Comercio bajo el N° 06 folio 76-87 de fecha 11/04/19 La entidad cierra su año económico el 31 de diciembre.
A44: Inscripción en la Comisión Nacional de Valores: | B44: Inscripta y reconocida como S.A.E.C.A. por Resolución N° 45 E/15. Acta de Directorio N° 53 de fecha 25/08/2015 de la Comisión Nacional de Valores
A48: COMPOSICION DEL CAPITAL
A50: Capital Social Gs. | C50: Capital Emitido | E50: Capital Suscripto | G50: Capital Integrado
C51: en Gs. | E51: en Gs. | G51: en Gs.
A52: Total | B52: 250000000000 | C52: 250000000000 | E52: 98961000000 | G52: 98961000000
A53: Acciones Ordinarias de Votos Múltiples | B53: 50000000000 | C53: 50000000000 | E53: 19906000000 | G53: 19906000000
A54: Acciones Ordinarias Simples | B54: 50000000000 | C54: 50000000000 | E54: 21894000000 | G54: 21894000000
A55: Acciones Preferidas Clase A | B55: 2000000000 | C55: 2000000000 | E55: 2000000000 | G55: 2000000000
A56: Acciones Preferidas Clase B | B56: 6000000000 | C56: 6000000000 | E56: 6000000000 | G56: 6000000000
A57: Acciones Preferidas Clase C | B57: 12000000000 | C57: 12000000000 | E57: 12000000000 | G57: 12000000000
A58: Acciones Preferidas Clase D | B58: 1000000000 | C58: 1000000000 | E58: 1000000000 | G58: 1000000000
A59: Acciones Preferidas Clase E | B59: 4000000000 | C59: 4000000000 | E59: 4000000000 | G59: 4000000000
A60: Acciones Preferidas Clase F | B60: 25000000000 | C60: 25000000000 | E60: 25000000000 | G60: 25000000000
A61: Acciones Preferidas Clase G | B61: 15000000000 | C61: 15000000000 | E61: 7161000000 | G61: 7161000000
A62: Acciones Preferidas sin características | B62: 85000000000 | C62: 85000000000 | E62: - | G62: -

Sheet Nota 2
A1: =Indice!C3 -> PASFIN S.A.E.C.A. | I1: BG
A4: NOTA 2 - RESUMEN DE LAS PRINCIPALES POLÍTICAS CONTABLES
A6: a. Bases de preparación de los Estados Financieros
A7: Los estados financieros se han preparado siguiendo los criterios de las Normas de Información Financiera (NIF) emitidas por el Consejo de Contadores Públicos del Paraguay sobre la base de costos históricos, excepto para el caso de activos y pasivos en moneda extranjera y las propiedades, planta y equipo según se explica en los puntos c ) y k), y no reconocen en forma integral los efectos de la inflación sobre la situación patrimonial y financiera de la sociedad, sobre los resultados de sus operaciones y los flujos de efectivo, en atención a que la corrección monetaria no constituye una práctica contable obligatoria en el Paraguay.
A8: Algunas cifras correspondientes al año terminado el 31 de diciembre de 2019 fueron reclasificadas en los presentes estados financieros con el fin de facilitar su comparación.
A10: b. Uso de estimaciones contables
A11: La preparación de los presentes estados financieros requiere que la Gerencia de la sociedad realice estimaciones y evaluaciones que afectan el monto de los activos y pasivos registrados y contingentes, como así también los ingresos y egresos registrados en el ejercicio. Los resultados reales futuros pueden diferir de las estimaciones y evaluaciones realizadas a la fecha de preparación de los presentes estados financieros.
A13: c. Moneda extranjera
A14: Los activos y pasivos en moneda extranjera se valúan a la cotización vigente al cierre de los estados financieros conforme a la publicación efectuada por la Administración Tributaria.
A15: Las diferencias de cambio originadas por fluctuaciones en los tipos de cambio producidos entre las fechas de concertación de las operaciones y su liquidación o valuación al cierre del ejercicio, son reconocidas en resultados.
C17: 2020-03-01 | G17: 2019-12-01
B18: Indicar moneda | C18: Simbología según ISO 4217 | D18: G. | F18: Indicar moneda | G18: Simbología según ISO 4217 | H18: G.
A19: Activos | B19: Dólares Americanos | C19: USD | D19: 118326678630 | F19: Dólares Americanos | G19: USD | H19: 1.261853548e+11
A21: Pasivos | B21: Dólares Americanos | C21: USD | D21: 91807932676 | F21: Dólares Americanos | G21: USD | H21: 100273300017
A23: Posición neta | D23: =D19-D21 -> 26518745954 | H23: =H19-H21 -> 2.591205483e+10
A25: A la fecha de emisión de estos estados financieros, el tipo de cambio de la moneda extranjera Dólares Americanos varió en un 2% con respecto al vigente al 31 de diciembre de 2019.
A27: El detalle de las cotizaciones de la moneda extranjera operada por la sociedad es el siguiente:
C29: 2020-03-01 | G29: 2019-12-01
C30: Cotización en Gs. | G30: Cotización en Gs.
B31: Indicar moneda | C31: Compra | D31: Venta | F31: Indicar moneda | G31: Compra | H31: Venta
B32: Dólares Americanos | C32: 6554.28 | D32: 6571.73 | F32: Dólares Americanos | G32: 6442.33 | H32: 6463.95
A34: d. Efectivo y equivalentes de efectivo
A35: Se considerarán dentro del concepto de efectivo los saldos en efectivo, disponibilidades en cuentas bancarias y toda inversión de muy alta liquidez, con vencimiento originalmente pactado no superior a tres meses.
A37: e. Inversiones
A38: Las inversiones temporales se valúan de acuerdo a los siguientes criterios de valuación:  Colocaciones financieras en moneda local: a su valor nominal más los intereses devengados al cierre del año/período. Ver Nota 4  Colocaciones financieras en moneda extranjera: a su valor de cotización al cierre del año/período más intereses devengados a ese momento. Ver Nota 4  Las inversiones no corrientes en sociedades donde no se ejerce el control, se valúan a su valor patrimonial proporcional. Ver Nota 8
A39: Observación: En caso de la existencia de saldos y transacciones con partes relacionadas, la información que corresponda a ser expuesta por la sociedad, se ajustará a lo requerido por la Norma de Información Financiera N° 7 Revelaciones de partes relacionadas.
A41: f. Previsión para cuentas de dudoso cobro/incobrables
A42: Las previsiones para cuentas de dudoso cobro se determinan mensualmente sobre la base del estudio de la cartera de créditos realizado con el objeto de determinar la porción no recuperable de las cuentas a cobrar. La entidad se rige por la siguiente política de constitución de previsiones:
A43: Política de previsiones vigente al cierre de los estados financieros:
A44: La sociedad constituirá dos tipos de previsiones, primeramente, las previsiones por tramo las cuales estarán ligadas a los días de mora de la operación o a su clasificación RRR. Segundo, las previsiones genéricas.
A45: Las previsiones son calculados sobre la totalidad del saldo de la operación y no así de la cuota vencida.
B46: TABLA DE PREVISIONES
B47: PREVISIÓN | D47: % DE PREVISIÓN | E47: CATEGORÍA CLIENTE
B48: de 1 - 30 días de mora | D48: 0.5% | E48: 1a
B49: de 31 - 60 días de mora. | D49: 0.015 | E49: 1b
B50: De 61 a 90 días de mora | D50: 0.05 | E50: 2
B51: de 91 - 120 días de mora. | D51: 0.25 | E51: 3
B52: de 121 - 180 días de mora. | D52: 0.5 | E52: 4
B53: de 181 - 270 días de mora. | D53: 0.75 | E53: 5
B54: superiores a 271 días de mora | D54: 1 | E54: 6
A56: Previsiones por tramo
A57: Operaciones RRR: Las operaciones RRR se previsionarán según la categoría crediticia del cliente.
A59: Previsiones genéricas
A60: Se constituirán adicionalmente previsiones genéricas las cuales deberán representar al menos 2,5% de la cartera vigente no debiendo superar el 15% de la cartera total.
A62: Previsiones subjetivas
A63: Cuando existan operaciones reclasificadas por motivos subjetivos, se previsionarán según la categoría crediticia del cliente definida en la tabla de previsiones.
A65: g. Activos disponibles para la venta
A66: Los activos disponibles para la venta representan bienes muebles o inmuebles recibidos en recuperación de créditos designados para la venta. Los mismos se valúan, sin amortizar, al menor valor entre el valor del crédito recuperado y el valor de mercado de los mismos.
A68: h. Propiedades, planta y equipo
A69: Las propiedades, planta y equipo se exponen a su costo histórico ajustado por el coeficiente de revalúo emitido por la Administración Tributaria, menos la correspondiente depreciación acumulada. El incremento neto por la re-expresión se acredita a la respectiva reserva patrimonial, cuyo saldo puede ser utilizado únicamente para aumentar el capital.
A70: El costo de las mejoras que extienden la vida útil de los bienes o aumentan su capacidad productiva es imputado a las cuentas respectivas del activo. Los gastos de mantenimiento son cargados a resultados.
A71: La depreciación es calculada por el método de línea recta conforme a la vida útil definida por la Administración Tributaria.
A73: i. Intangibles
A74: Los intangibles se exponen a su costo incurrido menos las correspondientes amortizaciones acumuladas al cierre del año.
A75: Las amortizaciones son calculadas por el método de línea recta y son reconocidas en los resultados del año.
A77: j. Reconocimiento de ingresos y egresos
A78: Los ingresos y egresos son reconocidos en función de su devengamiento.
A80: k. Impuesto a la renta
A81: El impuesto a la renta que se carga a los resultados del año se basa en la utilidad contable antes de este concepto, ajustada por las partidas que la ley incluye o excluye para la determinación de la utilidad gravable a la que se aplica la tasa legal vigente del 10% del impuesto y por el reconocimiento del cargo o el ingreso originado por la aplicación del impuesto diferido, si los hubiere.
A82: De acuerdo a la Ley 6380/19 la distribución de dividendos y utilidades está sujeta a una retención del 8% en concepto del Impuesto a los Dividendos y a las Utilidades (IDU) a personas físicas o jurídicas domiciliadas en el país, mientras que la tasa será del 15% cuando se tratase de no domiciliados. Excepcionalmente durante el presente año las ganancias acumuladas generadas en ejercicios anteriores y que no fueron capitalizadas ni distribuidas, podrán ser distribuidas y abonar sobre el monto determinado una tasa única y extraordinaria del 5% cuando sus socios y accionistas residan en el país y del 10% en caso de residentes en el exterior.
A83: El impuesto diferido es calculado utilizando el método del estado de situación basado en el balance general, determinado a partir de las diferencias temporarias entre los importes contables de activos y pasivos y los importes utilizados para fines fiscales. El importe de impuesto diferido calculado está basado en la forma esperada de realización o liquidación de los importes contables de activos y pasivos, utilizando la tasa de impuesto aprobada a la fecha de los estados financieros.
A84: Un activo por impuesto diferido es reconocido solamente hasta el importe que es probable que futuras ganancias imponibles estarán disponibles, contra cuyos respectivos impuestos, el activo pueda ser utilizado.
A85: El impuesto a la renta reconocido en los presentes estados financieros fue calculado conforme a estimaciones contables.
A87: Observación: Cambios en políticas contables y su efecto sobre los estados financieros, como así también las modificaciones o ajustes de la información de ejercicios anteriores deben exponerse conforme a lo requerido por la Norma de Información Financiera N° 6 Utilidad o pérdida neta por el período, errores fundamentales y cambios en políticas contables

Sheet Nota 3
A1: PASFIN S.A.E.C.A. | E1: BG
A4: NOTA 3 - EFECTIVO Y EQUIVALENTE DE EFECTIVO
A5: (Cifras expresadas en guaraníes)
A6: La composición de la cuenta es la siguiente:
A8: Concepto | C8: 2020-03-01 | D8: 2019-12-01
A9: Bancos Locales - Moneda local Guaraníes | C9: 1787396889 | D9: 1158376918
A10: Bancos Locales - Moneda extranjera Dólares | C10: 1598048949 | D10: 397648569
A11: Financieras Locales - Moneda extranjera Dólares | C11: 383988523 | D11: 3249041412
A12: Financieras Locales - Moneda local Guaraníes | C12: 314756414 | D12: 15632861623
A13: Caja - Moneda extranjera Dólares | C13: 159531175 | D13: 397472434
A14: Caja - Moneda local Guaraníes | C14: 52023594 | D14: 51032500
A15: Recaudaciones a depositar - Moneda local Guaraníes | C15: 42431657 | D15: 0
A16: Total | C16: =SUM($C$9:C15) -> 4338177201 | D16: =SUM($D$9:D15) -> 20886433456

Sheet Nota 4
A1: =Indice!C3 -> PASFIN S.A.E.C.A. | D1: BG
A4: NOTA 4 - INVERSIONES TEMPORALES
A5: (Cifras expresadas en guaraníes)
A6: La composición de la cuenta es la siguiente:
A8: Corriente
A10: Concepto | B10: 2020-03-01 | C10: 2019-12-01
A11: Inversiones en Mercado Bursatil Local - Moneda Local Guaraníes | B11: 2500000000 | C11: 0
A12: Inversiones en Mercado Bursatil Local - Moneda Extranjera Dólares | B12: 1310856000 | C12: 0
A13: Inversiones en Titulos del Sistema Financiero Local - Moneda Local Guaraníes | B13: 155000000 | C13: 45000000
A14: Total | B14: =SUM($B$11:B13) -> 3965856000 | C14: =SUM($C$11:C13) -> 45000000
A17: No corriente
A19: Concepto | B19: 2020-03-31 | C19: 2019-12-31
A20: Inversiones en Titulos del Sistema Financiero Local - Moneda Local Guaraníes | B20: 210000000 | C20: 320000000
A21: Total | B21: 210000000 | C21: 320000000

Sheet Nota 5
A1: =Indice!C3 -> PASFIN S.A.E.C.A. | F1: BG
A4: NOTA 5 – CARTERA DE CRÉDITOS
A5: (Cifras expresadas en guaraníes) | F5: ANEXO C
F6: COMPOSICION DE LA CARTERA DE CRÉDITOS AL 31/03/2020
A7: Corriente | F7: SITUACION | G7: MONTO EN G. | H7: PREVISIONES
A8: La cartera de créditos a corto plazo se integra como sigue: | H8: IMPORTE EN G. | I8: % PREVISIONES S/ CARTERA
F9: A. Total Cartera no Vencida | G9: 3.123320559e+11 | H9: 1.359484923e+10 | I9: 0.04352690982
C10: 2020-03-01 | D10: 2020-12-01 | F10: B. Total Cartera Vencida | G10: 7.713290807e+10 | H10: 3.250776099e+10 | I10: 0.4214512561
A11: Deudores por ventas locales | B11: Moneda Local Guaraníes | C11: 214765109668 | D11: 219374944052 | F11: Composición Cartera Vencida
A12: Deudores por ventas locales | B12: Moneda Extranjera Dólares | C12: 90921274861 | D12: 103618178542 | F12: Normal | G12: 4.470372352e+10 | H12: 6341006971 | I12: 0.1418451635
A13: Menos: Intereses a Vencer | C13: -10958686348 | D13: -8499918039 | F13: En Gestión de Cobro | G13: 2.593110633e+10 | H13: 1.963618541e+10 | I13: 0.7572444139
A14: Menos: Previsiones | C14: -15149104897 | D14: -17860610742 | F14: En Gestión de Cobro Judicial | G14: 6498078218 | H14: 6530568609 | I14: 1.005
A15: Total | C15: =+SUM($C$11:C14) -> 279578593284 | D15: =+SUM($D$11:D14) -> 296632593813
F16: TOTAL DE LA CARTERA DE CREDITOS (A+B) | G16: =G9+G10 -> 389464963971
A17: No Corriente
A18: Las cartera de créditos a largo plazo se integra como sigue: | F18: (-) TOTAL DE PREVISIONES | G18: =-((G9*I9)+(SUMPRODUCT(G12:G14,I12:I14))) -> -4.610261023e+10
C20: 2020-03-01 | D20: 2020-12-01 | F20: TOTAL NETO DE LA CARTERA DE CRÉDITOS | G20: =G16+G18 -> 343362353746
A21: Deudores por ventas locales | B21: Moneda Local Guaraníes | C21: 95721175747 | D21: 85777534899
A22: Deudores por ventas locales | B22: Moneda Extranjera Dólares | C22: 22728615957 | D22: 17346074412 | F22: OBSERVACIONES
A23: Deudores en gestión judicial | B23: Moneda Local Guaraníes | C23: 6498078218 | D23: 6411554381 | F23: CRITERIOS DE CLASIFICACION UTILIZADOS
A24: Deudores en gestión judicial | B24: Moneda Extranjera Dólares | C24: 0 | D24: 88528179.62 | F24: Normal | G24: De 1 a 90 días de atraso
A25: Menos: Intereses a vencer | C25: -30210604132 | D25: -31928991160 | F25: En Gestión de Cobro | G25: De 91 a 270 días de atraso
A26: Menos Previsiones | C26: -30953505328 | D26: -25777077578 | F26: En Gestión de Cobro Judicial | G26: Superiores a 270 días de atraso
A27: Total | C27: =+SUM($C$21:C26) -> 63783760462 | D27: =+SUM($D$21:D26) -> 51917623134

Sheet Nota 6
A1: =Indice!C3 -> PASFIN S.A.E.C.A. | D1: BG
A4: NOTA 6 - OTROS CRÉDITOS
A5: (Cifras expresadas en guaraníes)
A6: El rubro de otros créditos se compone como sigue:
A8: Corriente
A10: Concepto | B10: 2020-03-01 | C10: 2019-12-01
A11: Cheques en garantía redescontados | B11: 2014239111 | C11: 0
A12: Cargos Diferidos | B12: 1875000001 | C12: 0
A13: Deudores varios | B13: 1757114063 | C13: 1463085597
A14: Anticipo Impuesto a la Renta | B14: 735608861 | C14: 735608861
A15: Cheques diferidos | B15: 400000000 | C15: 761058250
A16: Anticipos a proveedores | B16: 98620264 | C16: 90599420
A17: Garantía de alquiler | B17: 57166430 | C17: 56190003
A18: Gastos pagados por adelantado | B18: 8939742 | C18: 14991541
A19: Total | B19: =SUM(B11:B18) -> 6946688472 | C19: =SUM(C11:C18) -> 3121533672
A21: No corriente
A23: Concepto | B23: 2020-03-31 | C23: 2019-12-31
A24: Fondo de Garantia Procard | B24: 38000000 | C24: 38000000
A25: Total | B25: =SUM(B24) -> 38000000 | C25: =SUM(C24) -> 38000000

Sheet Nota 7
A1: =Indice!C3 -> PASFIN S.A.E.C.A. | D1: BG
A4: NOTA 7 – INVENTARIOS
A5: (Cifras expresadas en guaraníes)
A6: Los bienes de cambio están compuestos de la siguiente manera:
A8: Concepto | B8: 2020-03-01 | C8: 2019-12-01
A9: Mercaderías
A10: Productos terminados
A11: Productos en proceso
A12: Materia prima
A13: (nuevas cuentas a incluir)
A14: (-) Previsión para desvalorización y deterioro de inventario
A15: Total | B15: =SUM(B9:B12) -> 0 | C15: =SUM(C9:C12) -> 0

Sheet Nota 8
A1: =Indice!C3 -> PASFIN S.A.E.C.A. | D1: BG
A4: Nota 8 - INVERSIONES EN ASOCIADAS
A5: (Cifras expresadas en guaraníes)
A6: Las inversiones en sociedades donde no se ejerce control se describen a continuación
A7: Periodo | B7: 2020-03-01 | C7: 2019-12-01
A8: Total Inversión | B8: 150000000 | C8: 150000000
A10: a) Datos sobre la sociedad:
A12: Nombre de Sociedad | B12: RUC | C12: Cantidad de acciones | D12: Al 31/03/2020 | F12: Al 31/12/2019
D13: Total Patrimonio neto | E13: Total del resultado | F13: Total Patrimonio neto | G13: Total del resultado
A14: Buró de Información Comercial S.A. (BIC S.A.) | B14: 80090066-9 | C14: 2.500 acciones serie A | D14: 3318810614 | E14: 170790352 | F14: 3119055816 | G14: 228809924
C15: 1.580 acciones serie B
A18: b) Datos sobre la inversión:
A20: Cantidad de acciones | B20: Participación sobre los votos (%) | C20: Total Inversión (en G.) | D20: Participación sobre el Patrimonio Neto al 31/03/2020 (%) | E20: Total valuación patrimonial proporcional al 31/03/2020 | F20: Resultado sobre inversiones al 31/03/2020
A21: 150 | B21: 3.91 | C21: 150000000 | D21: =C21/D14 -> 0.04519691463 | E21: =D21*D14 -> 150000000 | F21: =E14*D21 -> 7719196.959

Sheet Nota 9
A1: =Indice!C3 -> PASFIN S.A.E.C.A. | C1: BG
A4: NOTA 9 - PROPIEDADES, PLANTA Y EQUIPO - NETO
A5: (Cifras expresadas en guaraníes) | J5: -1
B7: Costo histórico revaluado al inicio del año | C7: Adquisiciones | D7: Bajas | E7: Revalúo del año | F7: Valor de origen revaluado al final del año | G7: Depreciación acumulada revaluada al inicio del año | H7: Depreciación del año | I7: Bajas de depreciaciones acumuladas | J7: Revalúo depreciación acumulada del año | K7: Depreciación acumulada revaluada al final del año | L7: Valor neto contable
L8: 2020-03-01 | M8: 2019-12-01
A9: Muebles y útiles | B9: 638418703 | C9: 32740910 | D9: 0 | E9: 0 | F9: =B9+C9-D9+E9 -> 671159613 | G9: -66223300 | H9: 0 | I9: 0 | J9: 0 | K9: =G9+H9-I9+J9 -> -66223300 | L9: =F9+K9 -> 604936313 | M9: 572195403
A10: Equipos informáticos | B10: 526766027 | C10: 31676363 | D10: 0 | E10: 0 | F10: =B10+C10-D10+E10 -> 558442390 | G10: -229651102 | H10: 0 | I10: 0 | J10: 0 | K10: =G10+H10-I10+J10 -> -229651102 | L10: =F10+K10 -> 328791288 | M10: 297114925
A11: Rodados | B11: 163619629 | C11: 0 | D11: 0 | E11: 0 | F11: 163619629 | G11: -73504974 | H11: 0 | I11: 0 | J11: 0 | K11: -73504974 | L11: 90114655 | M11: 90114655
A12: Herramientas | B12: 286840 | C12: 0 | D12: 0 | E12: 0 | F12: 286840 | G12: -57368 | H12: 0 | I12: 0 | J12: 0 | K12: -57368 | L12: 229472 | M12: 229472
A13: Equipos de comunicación | B13: 54203388 | C13: 0 | D13: 0 | E13: 0 | F13: 54203388 | G13: -10666132 | H13: 0 | I13: 0 | J13: 0 | K13: -10666132 | L13: 43537256 | M13: 43537256
A14: Equipos de seguridad | B14: 256311832 | C14: 4800000 | D14: 0 | E14: 0 | F14: 261111832 | G14: -51262366 | H14: 0 | I14: 0 | J14: 0 | K14: -51262366 | L14: 209849466 | M14: 205049466
A15: Otros bienes del activo fijo | B15: 67900000 | C15: 0 | D15: 0 | E15: 0 | F15: 67900000 | G15: 0 | H15: 0 | I15: 0 | J15: 0 | K15: 0 | L15: 67900000 | M15: 67900000
A16: Mejoras en propiedad de terceros | B16: 812141759 | C16: 0 | D16: 0 | E16: 0 | F16: 812141759 | G16: -162428352 | H16: 0 | I16: 0 | J16: 0 | K16: -162428352 | L16: 649713407 | M16: 649713407
A17: Totales | B17: =SUM(B9:B16) -> 2519648178 | C17: =SUM(C9:C16) -> 69217273 | D17: =SUM(D9:D16) -> 0 | E17: 0 | F17: =SUM(F9:F16) -> 2588865451 | G17: =SUM(G9:G16) -> -593793594 | H17: 0 | I17: 0 | J17: 0 | K17: =SUM(K9:K16) -> -593793594 | L17: =SUM(L9:L16) -> 1995071857 | M17: =SUM(M9:M16) -> 1925854584
A19: Obs.:
A20: Incluir aclaraciones en los siguientes casos:
A21: 1. Cuando los bienes de uso tienen alguna restricción sobre su utilización, como por ejemplo cuando están garantizando obligaciones. En su caso también hacer referencia a la nota correspondiente.
A22: 2. Cuando exista alguna previsión por desvalorización (“deterioro”), detallando la evolución de la misma en el transcurso del año.
A23: 3. Si se están capitalizando intereses al costo de bienes de uso. En su caso deberá aclararse la tasa utilizada para la capitalización.
A24: Ver adicionalmente Norma de Información Financiera N° 11 Propiedades, planta y equipo

Sheet Nota 10
A1: =Indice!C3 -> PASFIN S.A.E.C.A. | C1: BG
A4: NOTA 10 – ACTIVOS DISPONIBLES PARA LA VENTA
A5: (Cifras expresadas en guaraníes)
A7: Inversiones | B7: 2020-03-01 | C7: 2019-12-01
A8: Bienes muebles recibidos en recupero de créditos | B8: 2316009373 | C8: 2254150782
A9: Bienes inmuebles recibidos en recupero de créditos | B9: 21355558197 | C9: 19505389585
A10: Menos: Previsión sobre bienes inmuebles | B10: -255601191 | C10: -255601191
A11: Total | B11: =SUM(B8:B10) -> 23415966379 | C11: =SUM(C8:C10) -> 21503939176

Sheet Nota 11
A1: =Indice!C3 -> PASFIN S.A.E.C.A. | F1: BG
A4: NOTA 11 – ACTIVOS INTANGIBLES
A5: (Cifras expresadas en guaraníes)
A7: Activos intangibles | B7: 2020-03-01 | C7: 2019-12-01
A8: Licencias de Software | B8: 5091905102 | C8: 4782012622
A9: Menos: Amortización Acumulada | B9: -822724002 | C9: -541085127
A10: Total | B10: =SUM(B8:B9) -> 4269181100 | C10: =SUM(C8:C9) -> 4240927495

Sheet Nota 12
A1: =Indice!C3 -> PASFIN S.A.E.C.A. | E1: BG
A4: NOTA 12 – GOODWILL
A5: (Cifras expresadas en guaraníes)
A7: Goodwill | B7: 2020-03-01 | C7: 2020-12-01
A11: Total | B11: =SUM(B8:B10) -> 0 | C11: =SUM(C8:C10) -> 0

Sheet Nota 13
A1: =Indice!C3 -> PASFIN S.A.E.C.A. | C1: BG
A4: NOTA 13 – CUENTAS POR PAGAR COMERCIALES
A5: (Cifras expresadas en guaraníes)
A6: Las cuentas por pagar comerciales se componen como sigue:
A8: Corriente | B8: Simbología según ISO 4217 | C8: Indicación de Moneda | D8: 2020-03-01 | E8: 2019-12-01
A9: Proveedores locales | B9: PYG | C9: =IFERROR(VLOOKUP(B9,'Base de Monedas'!A:B,2,0),"") -> Guaraní | D9: 294777685 | E9: 1487070606
A10: Proveedores locales | B10: USD | C10: =IFERROR(VLOOKUP(B10,'Base de Monedas'!A:B,2,0),"") -> Dólar estadounidense | D10: 59925963 | E10: 118520143
A11: Total | D11: =SUM($D$9:D10) -> 354703648 | E11: =SUM($E$9:E10) -> 1605590749

Sheet Nota 14
A1: PASFIN SAECA | E1: BG | L1: BG
A4: NOTA 14 – PRÉSTAMOS A CORTO Y LARGO PLAZO
A5: (Cifras expresadas en guaraníes)
A7: Corriente
D8: 2020-03-31 | J8: 2019-12-31
A9: Préstamos de Entidades Financieras Locales | B9: Vencimiento | C9: Símbolo de Moneda | D9: Moneda | E9: Importe | F9: Tipo de Garantía | H9: Vencimiento | I9: Símbolo de Moneda | J9: Moneda | K9: Importe | L9: Tipo de Garantía
A10: Banco Rio S.A.E.C.A | B10: 2020 | C10: USD | D10: Dólar estadounidense | E10: 1097323226 | F10: Prenda | H10: 2020 | I10: USD | J10: Dólar estadounidense | K10: 1422069000 | L10: Prenda
A11: Banco Rio S.A.E.C.A | B11: 2020 | C11: USD | D11: Dólar estadounidense | E11: 420814496 | F11: Codeudoria | H11: 2020 | I11: USD | J11: Dólar estadounidense | K11: 1019083289 | L11: Codeudoria
A12: Banco Rio S.A.E.C.A | B12: 2020 | C12: USD | D12: Dólar estadounidense | E12: 416563698 | F12: Codeudoria | H12: 2020 | I12: USD | J12: Dólar estadounidense | K12: 707512490 | L12: Codeudoria
A13: Banco Rio S.A.E.C.A | B13: 2020 | C13: USD | D13: Dólar estadounidense | E13: 1150052750 | F13: Prenda | H13: 2020 | I13: USD | J13: Dólar estadounidense | K13: 2262382500 | L13: Prenda
A14: Banco Rio S.A.E.C.A | B14: 2020 | C14: USD | D14: Dólar estadounidense | E14: 2135812250 | F14: Prenda | H14: 2020 | I14: USD | J14: Dólar estadounidense | K14: 4201567500 | L14: Prenda
A15: Financiera Finexpar S.A.E.C.A | B15: 2020 | C15: USD | D15: Dólar estadounidense | E15: 3341734957 | F15: Sola firma | H15: 2020 | I15: USD | J15: Dólar estadounidense | K15: 3286928659 | L15: Sola firma
A16: Financiera Finexpar S.A.E.C.A | B16: 2020 | C16: USD | D16: Dólar estadounidense | E16: 3341734957 | F16: Sola firma | H16: 2020 | I16: USD | J16: Dólar estadounidense | K16: 3286928659 | L16: Sola firma
A17: Financiera Finexpar S.A.E.C.A | B17: 2020 | C17: USD | D17: Dólar estadounidense | E17: 4001061471 | F17: Endoso solidario | H17: 2020 | I17: USD | J17: Dólar estadounidense | K17: 8831044111 | L17: Endoso solidario
A18: Financiera Finexpar S.A.E.C.A | B18: 2020 | C18: PYG | D18: Guaraní | E18: 1321544433 | F18: Endoso solidario | H18: 2020 | I18: PYG | J18: Guaraní | K18: 4469370252 | L18: Endoso solidario
A19: Banco Interfisa S.A.E.C.A | B19: 2022 | C19: PYG | D19: Guaraní | E19: 1666666666 | F19: Codeudoria | H19: 2022 | I19: PYG | J19: Guaraní | K19: 1666666666 | L19: Codeudoria
A20: Fic S.A. de Finanzas | B20: 0 | C20: 0 | D20: 0 | E20: 0 | F20: 0 | H20: 2020 | I20: USD | J20: Dólar estadounidense | K20: 1446087138 | L20: Sola firma
A21: Fic S.A. de Finanzas | B21: 2020 | C21: PYG | D21: Guaraní | E21: 1024450000 | F21: Sola firma | H21: 2020 | I21: PYG | J21: Guaraní | K21: 3555852083 | L21: Sola firma
A22: Fic S.A. de Finanzas | B22: 2020 | C22: USD | D22: Dólar estadounidense | E22: 3695454381 | F22: Sola firma | H22: 2020 | I22: USD | J22: Dólar estadounidense | K22: 3634846889 | L22: Sola firma
A23: Fic S.A. de Finanzas | B23: 2020 | C23: USD | D23: Dólar estadounidense | E23: 2737125545 | F23: Sola firma | H23: 2020 | I23: USD | J23: Dólar estadounidense | K23: 2692235175 | L23: Sola firma
A24: Banco Bancop S.A. | B24: 2020 | C24: PYG | D24: Guaraní | E24: 2777909324 | F24: Codeudoria | H24: 2020 | I24: PYG | J24: Guaraní | K24: 1537583332 | L24: Codeudoria
A25: Financiera El Comercio S.A.E.C.A | B25: 2020 | C25: PYG | D25: Guaraní | E25: 317438475 | F25: Sola firma | H25: 2020 | I25: PYG | J25: Guaraní | K25: 3073451427 | L25: Sola firma
A26: Financiera Cefisa S.A.E.C.A | B26: 0 | C26: 0 | D26: 0 | E26: 0 | F26: 0 | H26: 2020 | I26: PYG | J26: Guaraní | K26: 850073327 | L26: Codeudoria
A27: Financiera Cefisa S.A.E.C.A | B27: 0 | C27: 0 | D27: 0 | E27: 0 | F27: 0 | H27: 2020 | I27: USD | J27: Dólar estadounidense | K27: 3883197666 | L27: Codeudoria
A28: Financiera Cefisa S.A.E.C.A | B28: 2020 | C28: USD | D28: Dólar estadounidense | E28: 2918184697 | F28: Endoso solidario | H28: 2020 | I28: USD | J28: Dólar estadounidense | K28: 3213005467 | L28: Endoso solidario
A29: Sudameris Bank S.A.E.C.A | B29: 0 | C29: 0 | D29: 0 | E29: 0 | F29: 0 | H29: 2020 | I29: PYG | J29: Guaraní | K29: 263946375 | L29: Codeudoria
A30: Sudameris Bank S.A.E.C.A | B30: 0 | C30: 0 | D30: 0 | E30: 0 | F30: 0 | H30: 2020 | I30: PYG | J30: Guaraní | K30: 175964246 | L30: Codeudoria
A31: Sudameris Bank S.A.E.C.A | B31: 2020 | C31: PYG | D31: Guaraní | E31: 88570076 | F31: Codeudoria | H31: 2020 | I31: PYG | J31: Guaraní | K31: 348395709 | L31: Codeudoria
A32: Sudameris Bank S.A.E.C.A | B32: 2020 | C32: PYG | D32: Guaraní | E32: 150569133 | F32: Codeudoria | H32: 2020 | I32: PYG | J32: Guaraní | K32: 592272707 | L32: Codeudoria
A33: Sudameris Bank S.A.E.C.A | B33: 2020 | C33: USD | D33: Dólar estadounidense | E33: 648988304 | F33: Codeudoria | H33: 2020 | I33: USD | J33: Dólar estadounidense | K33: 1260624802 | L33: Codeudoria
A34: Sudameris Bank S.A.E.C.A | B34: 2020 | C34: USD | D34: Dólar estadounidense | E34: 546516697 | F34: Codeudoria | H34: 2020 | I34: USD | J34: Dólar estadounidense | K34: 1061578967 | L34: Codeudoria
A35: Sudameris Bank S.A.E.C.A | B35: 2020 | C35: PYG | D35: Guaraní | E35: 449835176 | F35: Codeudoria | H35: 2020 | I35: PYG | J35: Guaraní | K35: 774066272 | L35: Codeudoria
A36: Sudameris Bank S.A.E.C.A | B36: 2020 | C36: PYG | D36: Guaraní | E36: 289428829 | F36: Codeudoria | H36: 2020 | I36: PYG | J36: Guaraní | K36: 498042637 | L36: Codeudoria
A37: Sudameris Bank S.A.E.C.A | B37: 2020 | C37: PYG | D37: Guaraní | E37: 585282173 | F37: Codeudoria | H37: 2020 | I37: PYG | J37: Guaraní | K37: 920757073 | L37: Codeudoria
A38: Sudameris Bank S.A.E.C.A | B38: 2020 | C38: PYG | D38: Guaraní | E38: 381517271 | F38: Codeudoria | H38: 2020 | I38: PYG | J38: Guaraní | K38: 600197204 | L38: Codeudoria
A39: Sudameris Bank S.A.E.C.A | B39: 2020 | C39: USD | D39: Dólar estadounidense | E39: 465198243 | F39: Codeudoria | H39: 2020 | I39: USD | J39: Dólar estadounidense | K39: 677616590 | L39: Codeudoria
A40: Sudameris Bank S.A.E.C.A | B40: 2020 | C40: USD | D40: Dólar estadounidense | E40: 714652505 | F40: Codeudoria | H40: 2020 | I40: USD | J40: Dólar estadounidense | K40: 1040976292 | L40: Codeudoria
A41: Sudameris Bank S.A.E.C.A | B41: 2021 | C41: USD | D41: Dólar estadounidense | E41: 4271624500 | F41: Codeudoria | H41: 0 | I41: 0 | J41: 0 | K41: 0 | L41: 0
A42: Sudameris Bank S.A.E.C.A | B42: 2021 | C42: USD | D42: Dólar estadounidense | E42: 6571730000 | F42: Prenda | H42: 0 | I42: 0 | J42: 0 | K42: 0 | L42: 0
A43: Sudameris Bank S.A.E.C.A | B43: 2021 | C43: USD | D43: Dólar estadounidense | E43: 1242056970 | F43: Codeudoria | H43: 0 | I43: 0 | J43: 0 | K43: 0 | L43: 0
A44: Banco BBVA S.A.E.C.A | B44: 0 | C44: 0 | D44: 0 | E44: 0 | F44: 0 | H44: 2020 | I44: PYG | J44: Guaraní | K44: 250000000 | L44: Codeudoria
A45: Banco BBVA S.A.E.C.A | B45: 0 | C45: 0 | D45: 0 | E45: 0 | F45: 0 | H45: 2020 | I45: PYG | J45: Guaraní | K45: 550000003 | L45: Codeudoria
A46: Banco BBVA S.A.E.C.A | B46: 2020 | C46: PYG | D46: Guaraní | E46: 1375000000 | F46: Codeudoria | H46: 2020 | I46: PYG | J46: Guaraní | K46: 2200000000 | L46: Codeudoria
A47: Banco BBVA S.A.E.C.A | B47: 2020 | C47: PYG | D47: Guaraní | E47: 600000000 | F47: Codeudoria | H47: 2020 | I47: PYG | J47: Guaraní | K47: 900000000 | L47: Codeudoria
A48: Banco BBVA S.A.E.C.A | B48: 2020 | C48: PYG | D48: Guaraní | E48: 548333335 | F48: Codeudoria | H48: 2020 | I48: PYG | J48: Guaraní | K48: 783333334 | L48: Codeudoria
A49: Banco BBVA S.A.E.C.A | B49: 2020 | C49: PYG | D49: Guaraní | E49: 533333332 | F49: Codeudoria | H49: 2020 | I49: PYG | J49: Guaraní | K49: 733333333 | L49: Codeudoria
A50: Banco BBVA S.A.E.C.A | B50: 2021 | C50: PYG | D50: Guaraní | E50: 1250000000 | F50: Codeudoria | H50: 0 | I50: 0 | J50: 0 | K50: 0 | L50: 0
A51: Banco BBVA S.A.E.C.A | B51: 2021 | C51: PYG | D51: Guaraní | E51: 625000000 | F51: Codeudoria | H51: 0 | I51: 0 | J51: 0 | K51: 0 | L51: 0
A52: Banco BBVA S.A.E.C.A | B52: 2021 | C52: PYG | D52: Guaraní | E52: 568333333 | F52: Codeudoria | H52: 0 | I52: 0 | J52: 0 | K52: 0 | L52: 0
A53: Banco BBVA S.A.E.C.A | B53: 2021 | C53: PYG | D53: Guaraní | E53: 1400000000 | F53: Codeudoria | H53: 0 | I53: 0 | J53: 0 | K53: 0 | L53: 0
A54: Banco Continental S.A.E.C.A | B54: 2021 | C54: PYG | D54: Guaraní | E54: 252191289 | F54: Codeudoria | H54: 2020 | I54: PYG | J54: Guaraní | K54: 243538463 | L54: Codeudoria
A55: Banco Basa | B55: 0 | C55: 0 | D55: 0 | E55: 0 | F55: 0 | H55: 2020 | I55: USD | J55: Dólar estadounidense | K55: 3764824983 | L55: Solidaria
A56: Sub Total | E56: =SUM(E10:E55) -> 55922032492 | K56: =SUM(K10:K55) -> 72679354620
A58: Intereses préstamos entidades financieras a pagar
A59: Intereses a pagar | C59: PYG | D59: Guaraní | E59: 987309233 | I59: PYG | J59: Guaraní | K59: 1098524980
A60: Intereses a pagar | C60: USD | D60: Dólar estadounidense | E60: 1846387414 | I60: USD | J60: Dólar estadounidense | K60: 1696875047
A61: (-) Intereses a Devengar | E61: -2716913333 | K61: -3483330411
A62: Sub Total | E62: =SUM(E59:E61) -> 116783314 | K62: =SUM(K59:K61) -> -687930384
A64: Total Préstamos con entidades financieras locales | E64: =E56+E62 -> 56038815806 | K64: =K56+K62 -> 71991424236
A66: Otros Préstamos
A67: Otros Préstamos Tomados No Socios | B67: 2026 | C67: PYG | D67: Guaraní | E67: 8595838873 | F67: Sola firma | H67: 2026 | I67: PYG | J67: Guaraní | K67: 8246259772 | L67: Sola firma
A68: Otros Préstamos Tomados No Socios | B68: 2027 | C68: USD | D68: Dólar estadounidense | E68: 5007927503 | F68: Sola firma | H68: 2027 | I68: USD | J68: Dólar estadounidense | K68: 5649447440 | L68: Sola firma
A69: Otros Préstamos Tomados No Socios | B69: 2021 | C69: PYG | D69: Guaraní | E69: 10182000000 | F69: Fiduciaria | H69: 2021 | I69: PYG | J69: Guaraní | K69: 8817000000 | L69: Fiduciaria
A70: Otros Préstamos Tomados No Socios | B70: 2021 | C70: USD | D70: Dólar estadounidense | E70: 9198122730 | F70: Fiduciaria | H70: 2021 | I70: USD | J70: Dólar estadounidense | K70: 5151768150 | L70: Fiduciaria
A71: Otros Préstamos Tomados Socios | B71: 2023 | C71: PYG | D71: Guaraní | E71: 3630740274 | F71: Sola firma | H71: 2023 | I71: PYG | J71: Guaraní | K71: 5280740274 | L71: Sola firma
A72: Otros Préstamos Tomados Socios | B72: 2022 | C72: USD | D72: Dólar estadounidense | E72: 4435917750 | F72: Sola firma | H72: 2022 | I72: USD | J72: Dólar estadounidense | K72: 5009561250 | L72: Sola firma
A73: Sub Total | E73: =SUM(E67:E72) -> 41050547130 | K73: =SUM(K67:K72) -> 38154776886
A75: Intereses Otros Préstamos
A76: Intereses a pagar No Socios | C76: PYG | D76: Guaraní | E76: 8597122002 | I76: PYG | J76: Guaraní | K76: 9127608312
A77: Intereses a pagar No Socios | C77: USD | D77: Dólar estadounidense | E77: 3147892200 | I77: USD | J77: Dólar estadounidense | K77: 3257944620
A78: (-) Intereses a Devengar No Socios | E78: -9932348197 | K78: -9965627267
A79: Intereses a pagar Socios | C79: PYG | D79: Guaraní | E79: 1222538582 | I79: PYG | J79: Guaraní | K79: 1542573176
A80: Intereses a pagar Socios | C80: USD | D80: Dólar estadounidense | E80: 1275132126 | I80: USD | J80: Dólar estadounidense | K80: 1313445024
A81: (-) Intereses a Devengar Socios | E81: -2104394923 | K81: -2303273570
A82: Sub Total | E82: =SUM(E76:E81) -> 2205941790 | K82: =SUM(K76:K81) -> 2972670295
A84: Intereses préstamos entidades Financieras del Exterior a pagar
A85: Intereses a pagar | C85: PYG | D85: Guaraní | E85: 9302641886 | I85: PYG | J85: Guaraní | K85: 9302641886
A86: (-) Intereses a Devengar | C86: PYG | D86: Guaraní | E86: -5805609924 | I86: PYG | J86: Guaraní | K86: -8096101330
A87: Sub Total | E87: =SUM(E85:E86) -> 3497031962 | K87: =SUM(K85:K86) -> 1206540556
A89: Total Otros Préstamos | E89: =E73+E82+E87 -> 46753520882 | K89: =K73+K82+K87 -> 42333987737
A91: Total Préstamos a Corto Plazo | E91: =E64+E89 -> 102792336688 | K91: =K64+K89 -> 114325411973
A94: No Corriente
D95: 2020-03-31 | J95: 2019-12-31
A96: Préstamos de Entidades Financieras Locales | B96: Vencimiento | C96: Símbolo de Moneda | D96: Moneda | E96: Importe (miles de Gs) | F96: Tipo de garantía | H96: Vencimiento | I96: Símbolo de Moneda | J96: Moneda | K96: Importe (miles de Gs) | L96: Tipo de Garantía
A97: Banco Continental S.A.E.C.A | B97: 2021 | C97: PYG | D97: Guaraní | E97: 115912687 | F97: Codeudoria | H97: 2021 | I97: PYG | J97: Guaraní | K97: 182364411 | L97: Codeudoria
A98: Banco Interfisa S.A.E.C.A | B98: 2022 | C98: PYG | D98: Guaraní | E98: 3333333334 | F98: Codeudoria | H98: 2022 | I98: PYG | J98: Guaraní | K98: 3333333334 | L98: Codeudoria
A99: Sub Total | E99: =SUM(E97:E98) -> 3449246021 | K99: =SUM(K97:K98) -> 3515697745
A101: Intereses préstamos entidades financieras a pagar
A102: Intereses a pagar | C102: PYG | D102: Guaraní | E102: 465072148 | I102: PYG | J102: Guaraní | K102: 591183932
A103: (-) Intereses a Devengar | C103: PYG | D103: Guaraní | E103: -733215967 | I103: PYG | J103: Guaraní | K103: -850252915
A104: Sub Total | E104: =SUM(E102:E103) -> -268143819 | K104: =SUM(K102:K103) -> -259068983
A106: Total Préstamos de Entidades Financieras Locales | E106: =E99+E104 -> 3181102202 | K106: =K99+K104 -> 3256628762
A108: Otros Préstamos
A109: Otros Préstamos Tomados No Socios | B109: 2026 | C109: PYG | D109: Guaraní | E109: 41455851774 | F109: Sola firma | H109: 2026 | I109: PYG | J109: Guaraní | K109: 42206302614 | L109: Sola firma
A110: Otros Préstamos Tomados No Socios | B110: 2027 | C110: USD | D110: Dólar estadounidense | E110: 14302066934 | F110: Sola firma | H110: 2027 | I110: USD | J110: Dólar estadounidense | K110: 13951154079 | L110: Sola firma
A111: Otros Préstamos Tomados No Socios | B111: 2025 | C111: PYG | D111: Guaraní | E111: 9287000000 | F111: Fiduciaria | H111: 2025 | I111: PYG | J111: Guaraní | K111: 10452000000 | L111: Fiduciaria
A112: Otros Préstamos Tomados No Socios | B112: 2024 | C112: USD | D112: Dólar estadounidense | E112: 10978898520 | F112: Fiduciaria | H112: 2024 | I112: USD | J112: Dólar estadounidense | K112: 14724878100 | L112: Fiduciaria
A113: Otros Préstamos Tomados Socios | B113: 2023 | C113: PYG | D113: Guaraní | E113: 5198500000 | F113: Sola firma | H113: 2023 | I113: PYG | J113: Guaraní | K113: 5548500000 | L113: Sola firma
A114: Otros Préstamos Tomados Socios | B114: 2022 | C114: USD | D114: Dólar estadounidense | E114: 8108443629 | F114: Sola firma | H114: 2022 | I114: USD | J114: Dólar estadounidense | K114: 7975460678 | L114: Sola firma
A115: Sub Total | E115: =SUM(E109:E114) -> 89330760857 | K115: =SUM(K109:K114) -> 94858295471
A117: Préstamos de Entidades en el Exterior
A118: Frontera Capital B.V. | B118: 2024 | C118: PYG | D118: Guaraní | E118: 31482750000 | F118: Sin garantia | H118: 2024 | I118: PYG | J118: Guaraní | K118: 31482750000 | L118: Sin garantia
A119: Micro Small & Medium Enterprises Bonds S.A. | B119: 2022 | C119: PYG | D119: Guaraní | E119: 32400000000 | F119: Sin garantia | H119: 2022 | I119: PYG | J119: Guaraní | K119: 32400000000 | L119: Sin garantia
A120: Sub Total | E120: =SUM(E118:E119) -> 63882750000 | K120: =SUM(K118:K119) -> 63882750000
A122: Intereses Otros Préstamos
A123: Intereses a pagar No Socios | C123: PYG | D123: Guaraní | E123: 16820953454 | I123: PYG | J123: Guaraní | K123: 18862139122
A124: Intereses a pagar No Socios | C124: USD | D124: Dólar estadounidense | E124: 4572358500 | I124: USD | J124: Dólar estadounidense | K124: 5121847295
A125: (-) Intereses a Devengar No Socios | E125: -21348468747 | K125: -23937511431
A126: Intereses a pagar Socios | C126: PYG | D126: Guaraní | E126: 1292102820 | I126: PYG | J126: Guaraní | K126: 1524964400
A127: Intereses a pagar Socios | C127: USD | D127: Dólar estadounidense | E127: 1990194734 | I127: USD | J127: Dólar estadounidense | K127: 2235356333
A128: (-) Intereses a Devengar Socios | E128: -3282297554 | K128: -3760320733
A129: Sub Total | E129: =SUM(E123:E128) -> 44843207 | K129: =SUM(K123:K128) -> 46474986
A131: Intereses préstamos entidades Financieras del Exterior a pagar
A132: Intereses a pagar | C132: PYG | D132: Guaraní | E132: 22292204681 | I132: PYG | J132: Guaraní | K132: 22292204681
A133: (-) Intereses a Devengar | C133: PYG | D133: Guaraní | E133: -22292204681 | I133: PYG | J133: Guaraní | K133: -22292204681
A134: Sub Total | E134: =SUM(E132:E133) -> 0 | K134: =SUM(K132:K133) -> 0
A136: Total Otros Préstamos | E136: =E115+E120+E129+E134 -> 153258354064 | K136: =K115+K120+K129+K134 -> 158787520457
A138: Total Préstamos a Largo Plazo | E138: =E106+E136 -> 156439456266 | K138: =K106+K136 -> 162044149219

Sheet Nota 15
A1: =Indice!C3 -> PASFIN S.A.E.C.A. | D1: BG
A4: NOTA 15 – PORCIÓN CORRIENTE DE LA DEUDA A LARGO PLAZO
A5: (Cifras expresadas en guaraníes)
A7: Porción corriente de la deuda a largo plazo | B7: 2020-03-01 | C7: 2019-12-01
A8: Cuentas por pagar comerciales
A9: Préstamos bancarios
A10: Bonos bursátiles
A11: Intereses bancarios a pagar
A12: Intereses bursatiles a pagar
A13: (nuevas cuentas a incluir)
A14: Total | B14: =SUM($B$8:B13) -> 0 | C14: =SUM($C$8:C13) -> 0

Sheet Nota 16
A1: =Indice!C3 -> PASFIN S.A.E.C.A. | C1: BG
A4: NOTA 16 – REMUNERACIONES Y CARGAS SOCIALES A PAGAR
A5: (Cifras expresadas en guaraníes)
A7: Remuneraciones y cargas sociales a pagar | B7: 2020-03-01 | C7: 2019-12-01
A8: Aportes y retenciones a pagar | B8: 68908083 | C8: 64429974
A9: Aguinaldos a pagar | B9: 63062500 | C9: 23438
A10: Total | B10: =SUM($B$8:B9) -> 131970583 | C10: =SUM($C$8:C9) -> 64453412

Sheet Nota 17
A1: =Indice!C3 -> PASFIN S.A.E.C.A. | C1: BG
A4: NOTA 17 – IMPUESTOS A PAGAR
A5: (Cifras expresadas en guaraníes)
A7: Impuestos a pagar | B7: 2020-03-01 | C7: 2019-12-01
A8: Dirección General de Recaudaciones - IVA a pagar | B8: 1034756087 | C8: 601448946
A9: Impuesto a la renta a pagar | B9: 287202040 | C9: 120632083
A10: Retenciones de impuestos a pagar | B10: 0 | C10: 89189108
A11: Total | B11: =SUM($B$8:B10) -> 1321958127 | C11: =SUM($C$8:C10) -> 811270137

Sheet Nota 18
A1: =Indice!C3 -> PASFIN S.A.E.C.A. | D1: BG
A4: NOTA 18 - PROVISIONES
A5: (Cifras expresadas en guaraníes)
A7: Provisiones | B7: 2020-03-01 | C7: 2019-12-01
A9: Alquileres a Pagar
A10: Servicios Basicos a Pagar
A11: Honorarios Profesionales a Pagar
A12: (Indicar cuentas)
A13: Total | B13: =SUM($B$9:B12) -> 0 | C13: =SUM($C$9:C12) -> 0

Sheet Nota 19
A1: =Indice!C3 -> PASFIN S.A.E.C.A. | D1: BG
A3: NOTA 19 – OTROS PASIVOS
A4: (Cifras expresadas en guaraníes)
A6: Corriente | B6: 2020-03-01 | C6: 2019-12-01
A7: Cheques en garantía redescontados | B7: 2019601785 | C7: 0
A8: Operaciones pasivas a constituir | B8: 1787573468 | C8: 243918500
A9: Otros pasivos corrientes | B9: 424233134 | C9: 36291374
A10: Anticipos varios | B10: 47192750 | C10: 175776999
A11: Total | B11: =SUM(B7:B10) -> 4278601137 | C11: =SUM(C7:C10) -> 455986873

Sheet Nota 20
A1: =Indice!C3 -> PASFIN S.A.E.C.A. | D1: BG
A4: NOTA 20 – CAPITAL INTEGRADO
A5: (Cifras expresadas en guaraníes)
A7: Concepto | B7: 2020-03-01 | C7: 2019-12-01
A8: Monto Capital Social | B8: 250000000000 | C8: 250000000000
A9: Monto Capital Integrado | B9: 98961000000 | C9: 98910000000
A10: Cantidad de Acciones | B10: 98961 | C10: 98910
A11: Valor Nominal de Acciones | B11: 1000000 | C11: 1000000
A12: Total Capital Integrado | B12: =+B9 -> 98961000000 | C12: =+C9 -> 98910000000

Sheet Nota 21
A1: =Indice!C3 -> PASFIN S.A.E.C.A. | F1: BG
A4: NOTA 21 – RESERVAS
A5: (Cifras expresadas en guaraníes)
B7: 2020-03-01 | C7: 2019-12-01
A8: a- Reserva de revalúo | B8: 383681070 | C8: 383681070
A9: La cuenta está compuesta por:
A10: Reserva de revalúo fiscal: Al cierre del ejercicio aplicando el coeficiente de revalúo determinado por la Administración Tributaria.
A11: Reserva de revalúo extraordinario: Valuación residual estraordinaria según valor tasación de bienes inmuebles recibidos en recupero de créditos.
A13: b- Reserva legal | B13: 3782180262 | C13: 3782180262
A14: En cumplimiento a lo establecido en el Art. 91° de la Ley 1034/83 del comerciante, la sociedad constituye una reserva legal anual a una tasa del 5% sobre la utilidad del ejercicio. Dicha reserva no deberá superar el 20% del capital suscripto.
A16: c- Reservas facultativas | B16: 4100000000 | C16: 4100000000
A17: Por Acta N° 18/2019 de Asamblea General de Accionistas llevada a cabo en fecha 24 de abril de 2019 se ha aprobado la constitución de una reserva para cartera de inversiones.

Sheet Nota 22
A1: =Indice!C3 -> PASFIN S.A.E.C.A. | F1: BG
A4: NOTA 22 – DIFERENCIA TRANSITORIA POR CONVERSIÓN
A5: (Cifras expresadas en guaraníes)
B7: 2020-03-01 | C7: 2019-12-01
A8: Diferencia transitoria por conversión
A9: Total | B9: =SUM(B8) -> 0 | C9: =SUM(C8) -> 0

Sheet Nota 23
A1: =Indice!C3 -> PASFIN S.A.E.C.A. | F1: BG
A4: NOTA 23 – RESULTADOS ACUMULADOS
A5: (Cifras expresadas en guaraníes)
A7: Concepto | B7: 2020-03-01 | C7: 2019-12-01
A8: Resultado de ejercicios anteriores | B8: 14302027372 | C8: 4170698
A9: Resultado del ejercicio actual | B9: 1846225339 | C9: 14297856674
A10: Totales | B10: =SUM($B$8:B9) -> 16148252711 | C10: =SUM($C$8:C9) -> 14302027372

Sheet Nota 24
A1: =Indice!C3 -> PASFIN S.A.E.C.A. | F1: BG
A4: NOTA 24 – INTERÉS MINORITARIO
A5: (Cifras expresadas en guaraníes)
B7: 2020-03-01 | C7: 2019-12-01
A8: Interés Minoritario
A9: Total | B9: =SUM(B8) -> 0 | C9: =SUM(C8) -> 0

Sheet Nota 25
A1: =Indice!C3 -> PASFIN S.A.E.C.A. | E1: ER
A4: NOTA 25 – VENTAS
A5: (Cifras expresadas en guaraníes)
A8: Ventas | B8: 2020-03-01 | C8: 2019-03-01
A10: Ventas Locales
A11: Servicios financieros
A12: Ventas Contado | B12: 6576076983 | C12: 10235657199
A13: Ventas Crédito | B13: 16563647527 | C13: 19300263991
A14: Menos: Devoluciones y descuentos concedidos | B14: -1989855447 | C14: -908170896
A15: Total | B15: =SUM($B$12:B14) -> 21149869063 | C15: =SUM(C12:C14) -> 28627750294

Sheet Nota 26
A1: =Indice!C3 -> PASFIN S.A.E.C.A. | E1: ER
A4: NOTA 26 - COSTO DE VENTAS
A5: (Cifras expresadas en guaraníes)
A8: Costo de ventas | B8: 2020-03-01 | C8: 2019-03-01
A9: Costos financieros | B9: 10678657292 | C9: 11449462628
A10: Honorarios a Profesionales y Técnicos | B10: 918414744 | C10: 724212903
A11: Otras Retribuciones Personales | B11: 0 | C11: 326890130
A12: Menos: Descuentos obtenidos | B12: -675755088 | C12: -2327458670
A13: Total costo de ventas | B13: =SUM($B$9:B12) -> 10921316948 | C13: =SUM($C$9:C12) -> 10173106991

Sheet Nota 27
A1: =[16]Indice!C1 -> PASFIN S.A.E.C.A. | G1: ER
A4: NOTA 27 - GASTOS
A5: (Cifras expresadas en guaraníes)
A7: El rubro está compuesto de la siguiente forma:
A9: Concepto | B9: =+[16]Indice!D6 -> 2020-03-31 | E9: =+[16]Indice!G6 -> 2019-03-31
B10: Gastos de Ventas | C10: Gastos Administrativos | D10: Total | E10: Gastos de Ventas | F10: Gastos Administrativos | G10: Total
A11: Movilidad y viáticos | B11: 0 | C11: 22484854 | D11: =+C11+B11 -> 22484854 | E11: 0 | F11: 14315072 | G11: =+F11+E11 -> 14315072
A12: Gastos de alquiler | B12: 0 | C12: 201367021 | D12: =+C12+B12 -> 201367021 | E12: 0 | F12: 183772404 | G12: =+F12+E12 -> 183772404
A13: Computación y redes | B13: 0 | C13: 183716590 | D13: 183716590 | E13: 0 | F13: 16728296 | G13: 16728296
A14: Gastos por servicios | B14: 0 | C14: 4171505 | D14: 4171505 | E14: 0 | F14: 4505922 | G14: 4505922
A15: Honorarios profesionales y asesoramiento | B15: 0 | C15: 202054626 | D15: 202054626 | E15: 0 | F15: 546270884 | G15: 546270884
A16: Impuestos y tasas | B16: 0 | C16: 104662090 | D16: 104662090 | E16: 0 | F16: 78620726 | G16: 78620726
A17: Gastos de reparación y mantenimiento | B17: 0 | C17: 10835875 | D17: 10835875 | E17: 0 | F17: 10504746 | G17: 10504746
A18: Gastos del personal y capacitación | B18: 0 | C18: 83871453 | D18: 83871453 | E18: 0 | F18: 71746364 | G18: 71746364
A19: Seguros pagados | B19: 0 | C19: 6227919 | D19: 6227919 | E19: 0 | F19: 4340866 | G19: 4340866
A20: Otros gastos de operación | B20: 0 | C20: 912760401 | D20: 912760401 | E20: 0 | F20: 789193626 | G20: 789193626
A21: Remuneraciones de administradores, directores, síndicos y consejo de vigilancia | B21: 0 | C21: 476981867 | D21: 476981867 | E21: 0 | F21: 64234560 | G21: 64234560
A22: Sueldos y Jornales | B22: 341843662 | C22: 548847783 | D22: 890691445 | E22: 289982310 | F22: 490838276 | G22: 780820586
A23: Contribuciones Sociales | B23: 0 | C23: 135858255 | D23: 135858255 | E23: 0 | F23: 110828448 | G23: 110828448
A24: Gastos de Publicidad y Propaganda | B24: 32067274 | C24: 0 | D24: 32067274 | E24: 119083989 | F24: 0 | G24: 119083989
A25: Intereses, multas y recargos impositivos | B25: 0 | C25: 22182711 | D25: 22182711 | E25: 0 | F25: 39638721 | G25: 39638721
A26: Amortización activos intangibles | B26: 0 | C26: 281638875 | D26: 281638875 | E26: 0 | F26: 26096384 | G26: 26096384
A27: Previsiones | B27: 0 | C27: 4034173934 | D27: 4034173934 | E27: 0 | F27: 8868828126 | G27: 8868828126
A28: Donaciones | B28: 0 | C28: 0 | D28: 0 | E28: 0 | F28: 23318182 | G28: 23318182
A29: Totales | B29: =+SUM($B$11:B28) -> 373910936 | C29: =SUM(C11:C28) -> 7231835759 | D29: =+SUM($D$11:D28) -> 7605746695 | E29: =SUM(E11:E28) -> 409066299 | F29: =SUM(F11:F28) -> 11343781603 | G29: =SUM(G11:G28) -> 11752847902
D44: =SUM(D32:D42) -> 0
D45: =+D44-D29 -> -7605746695

Sheet Nota 28
A1: =Indice!C3 -> PASFIN S.A.E.C.A. | E1: ER
A4: NOTA 28 - OTROS INGRESOS Y GASTOS
A5: (Cifras expresadas en guaraníes)
A8: Otros ingresos | B8: 2020-03-01 | C8: 2019-03-01
A9: Ingresos por valuación | B9: 4631865112 | C9: 5657626181
A10: Venta de Bienes recibidos en recup. De creditos | B10: 197159680 | C10: 394285714
A11: Recupero de créditos | B11: 28681894 | C11: 1803676661
A12: Ingresos Diversos | B12: 14440197 | C12: 84571419
A13: Intereses ganados en bancos y financieras | B13: 10686181 | C13: 13448257
A14: Total | B14: =SUM($B$9:B13) -> 4882833064 | C14: =SUM(C9:C13) -> 7953608232
A16: Otros gastos | B16: 2020-03-01 | C16: 2019-03-01
A17: Pérdida por valuación | B17: 4058107400 | C17: 5412380003
A18: Pérdida por quitas sobre créditos | B18: 740186946 | C18: 45415571
A19: Costo de venta de bienes | B19: 247935909 | C19: 483000000
A20: Gastos Diversos | B20: 5365687 | C20: 30838
A21: Total | B21: =SUM($B$17:B20) -> 5051595942 | C21: =SUM(C17:C20) -> 5940826412

Sheet Nota 29
A1: =Indice!C3 -> PASFIN S.A.E.C.A. | E1: ER
A4: NOTA 29 - GASTOS FINANCIEROS
A5: (Cifras expresadas en guaraníes)
A7: Gastos Financieros netos | B7: 2020-03-01 | C7: 2019-03-01
A8: Intereses moratorios bancos y financieras | B8: 351998435 | C8: 460978872
A9: Total gastos financieros | B9: =SUM($B8:B8) -> 351998435 | C9: =SUM($C8:C8) -> 460978872

Sheet Nota 30
A1: =Indice!C3 -> PASFIN S.A.E.C.A. | E1: ER
A4: NOTA 30 - RESULTADO DE INVERSIONES EN ASOCIADAS
A5: (Cifras expresadas en guaraníes)
A8: Resultado de inversiones en asociadas | B8: 2020-03-01 | C8: 2019-03-01
A9: (Detallar cuenta)
A12: Total | B12: =SUM($B9:B11) -> 0 | C12: =SUM($C9:C11) -> 0

Sheet Nota 31
A1: =Indice!C3 -> PASFIN S.A.E.C.A. | E1: ER
A4: NOTA 31 - RESULTADO PARTICIPACIÓN MINORITARIA
A5: (Cifras expresadas en guaraníes)
A8: Resultado participación minoritaria | B8: 2020-03-01 | C8: 2019-03-01
A9: (Detallar cuenta)
A12: Total | B12: =SUM($B9:B11) -> 0 | C12: =SUM($C9:C11) -> 0

Sheet Nota 32
A1: =Indice!C3 -> PASFIN S.A.E.C.A. | E1: ER
A4: NOTA 32 - IMPUESTO A LA RENTA
A5: (Cifras expresadas en guaraníes)
A7: Concepto | B7: 2020-03-01 | C7: 2019-03-01
A8: Impuesto a la renta | B8: 255818768 | C8: 1004462919
A9: Total | B9: =SUM($B8:B8) -> 255818768 | C9: =SUM($C8:C8) -> 1004462919

Sheet Nota 33
A1: =Indice!C3 -> PASFIN S.A.E.C.A. | E1: ER
A4: NOTA 33 - RESULTADO EXTRAORDINARIO NETO DE IMPUESTO A LA RENTA
A5: (Cifras expresadas en guaraníes)
B7: 2020-03-01 | C7: 2019-03-01
A8: Conceptos
A9: (Detallar)
A12: Total | B12: =SUM($B8:B11) -> 0 | C12: =SUM($C8:C11) -> 0

Sheet Nota 34
A1: =Indice!C3 -> PASFIN S.A.E.C.A. | E1: ER
A4: NOTA 34 - RESULTADO SOBRE ACTIVIDADES DISCONTINUADAS NETO DE IMPUESTO A LA RENTA
A5: (Cifras expresadas en guaraníes)
A7: Resultado sobre actividades discontinuadas neto de impuesto a la renta | B7: 2020-03-01 | C7: 2019-03-01
A9: (nueva cuenta a incluir)
A10: Subtotal
A11: - Impuesto a la renta
A12: Total | B12: =SUM($B8:B11) -> 0 | C12: =SUM($C8:C11) -> 0

Sheet Nota 35
A1: =Indice!C3 -> PASFIN S.A.E.C.A. | C1: ER
A4: NOTA 35 - UTILIDAD (PÉRDIDA) NETA DEL AÑO Y POR ACCION ORDINARIA
A5: (Cifras expresadas en guaraníes)
A7: Concepto | B7: 2020-03-01 | C7: 2019-03-01
A8: Cantidad de Acciones Ordinarias en Circulación | B8: 41800 | C8: 27703
A9: Utilidad Neta | B9: =ER!C27 -> 1846225339 | C9: =ER!D27 -> 7249135430
A10: Utilidad Neta por Acción Ordinaria | B10: =IFERROR(B9/B8,0) -> 44168.07031 | C10: =IFERROR(C9/C8,0) -> 261673.3
A12: La Sociedad calcula la utilidad neta por acción sobre la base de la utilidad del año y el total de acciones ordinarias integradas con valor nominal de G. 1.000.000 cada una. Las acciones ordinarias de voto simple tienen derecho a 1 voto, en tanto que las acciones ordinarias de voto múltiple tienen derecho a 5 votos.

Sheet Nota 36
A1: =Indice!C3 -> PASFIN S.A.E.C.A. | E1: Indice
A4: NOTA 36 - ACTIVOS GRAVADOS
A5: (Cifras expresadas en guaraníes)
A7: Los siguientes bienes de propiedad de la Sociedad han sido hipotecados y prendados en garantía de obligaciones financieras.
A9: =IFERROR("Al "&DAY(Indice!B6)&" de "&VLOOKUP(MONTH(Indice!B6),Indice!S:T,2,0)&" de "&YEAR(Indice!B6-365),"Al dia... de mes… de año 2XX1…") -> Al dia... de mes… de año 2XX1…
A10: Tipo de Activo | B10: Datos del activo gravado | C10: Tipo de garantía | D10: Importe (indicar moneda) | E10: A favor de
A16: =IFERROR("Al "&DAY(Indice!B6)&" de "&VLOOKUP(MONTH(Indice!B6),Indice!S:T,2,0)&" de "&YEAR(Indice!B6-1),"Al dia... de mes… de año 2XX2…") -> Al dia... de mes… de año 2XX2…
A17: Tipo de Activo | B17: Datos del activo gravado | C17: Tipo de garantía | D17: Importe (indicar moneda) | E17: A favor de
A23: Observación: La sociedad revela en la Nota 14 los tipos de garantía por cada obligación financiera y no financiera.

Sheet Nota 37
A1: =Indice!C3 -> PASFIN S.A.E.C.A. | E1: Indice
A4: NOTA 37 - CONTINGENCIAS Y COMPROMISOS
A7: =IFERROR("Al "&DAY(Indice!B6)&" de "&VLOOKUP(MONTH(Indice!B6),Indice!S:T,2,0)&" de "&YEAR(Indice!B6-1)&" no existen situaciones contingentes, ni reclamos que pudieran resultar en la generación de obligaciones para la Sociedad adicionales a las que se presentan en estos estados financieros.","Al … de …………... 20X2 no existen situaciones contingentes, ni reclamos que pudieran resultar en la generación de obligaciones para la Sociedad adicionales a las que se presentan en estos estados financieros.") -> Al … de …………... 20X2 no existen situaciones contingentes, ni reclamos que pudieran resultar en la generación de obligaciones para la Sociedad adicionales a las que se presentan en estos estados financieros.

Sheet Nota 38
A1: =[16]Indice!C1 -> PASFIN S.A.E.C.A. | E1: Índice
A4: NOTA 38 - IMPUESTO DIFERIDO
A5: (Cifras expresadas en guaraníes)
A6: Al 31 de marzo de 2020 la sociedad constituyó una provisión para impuesto a la renta de Gs. 255.818.768.
A8: 38.1 | B8: Componentes del impuesto a la renta reconocido en el estado de resultados
D10: 2020-03-01 | F10: 2019-03-01
B11: (*) Gasto por impuesto corriente | D11: =-[16]ER!C29 -> 255818768 | F11: 1004462919
B12: (Ingresos) / Gasto por origen y reversión de diferencias temporarias | D12: 0 | F12: 0
B13: Gasto por el impuesto a la renta | D13: =SUM(D11:D12) -> 255818768 | F13: =SUM(F11:F12) -> 1004462919
A15: 38.2 | B15: Conciliación del gasto por impuesto a la renta y la utilidad contable
D17: 2020-03-01 | F17: 2019-03-01
B18: Ganancia Contable | D18: =[16]ER!C33-[16]ER!C29 -> 2102044107 | F18: 8253598349
B19: (*) Impuesto a la renta | D19: =-[16]ER!C29 -> 255818768 | F19: 1004462919
B20: Efecto fiscal de gastos que no cumplen con los requisitos de documentación | D20: 0 | F20: 0
B21: Gasto fiscal | D21: =SUM(D19:D20) -> 255818768 | F21: =SUM(F19:F20) -> 1004462919
A23: 38.3 | B23: Activos y pasivos por impuesto a la renta diferido
B25: Los activos correspondientes al impuesto a la renta diferido son atribuibles según el siguiente detalle:
D27: 2020-03-01 | F27: 2019-12-01
D28: Activo | F28: Activo
B29: ACTIVO
B30: Activo Corriente
B31: Cartera de créditos | D31: 2421856 | F31: 2421856
B32: Activo No Corriente
B33: Cartera de créditos | D33: 423881 | F33: 423881
B34: Activo por impuesto diferido | D34: =SUM(D31:D33) -> 2845737 | F34: =SUM(F31:F33) -> 2845737
A37: 38.4 | B37: Movimiento durante el año de las diferencias temporarias
D39: Saldos a Dic-19 | E39: Reconocido en Resultados | F39: Saldos a Mar-20
B40: Activo neto por impuesto diferido | D40: 2845737 | E40: 0 | F40: =+D40+E40 -> 2845737
D43: Saldos a Dic-18 | E43: Reconocido en Resultados | F43: Saldos a Mar-19
B44: Activo neto por impuesto diferido | D44: 4007174 | E44: 0 | F44: =+D44+E44 -> 4007174

Sheet Nota 39
A1: =Indice!C3 -> PASFIN S.A.E.C.A. | E1: Indice
A5: NOTA 39 - HECHOS POSTERIORES
A7: En fecha 21 de abril de 2020 la Sociedad ha firmado un acuerdo estratégico de fusión con las entidades CREDICENTRO S.A.E.C.A. y LCR S.A.E.C.A.
A8: En fecha 11 de mayo de 2020 se llevó a cabo la Asamblea General Extraordinaria N° 24/2020 por la cual se aprueba el compromiso previo de fusión por absorción por parte de la firma CREDICENTRO S.A.E.C.A. en carácter de absorbente y PASFIN S.A.E.C.A y LCR S.A.E.C.A. en carácter de absorbidas como asimismo el Balance Especial de Fusión.

Sheet Nota 40
A1: =Indice!C3 -> PASFIN S.A.E.C.A. | C1: Indice
A4: NOTA 40 - SALDOS Y TRANSACCIONES CON PARTES RELACIONADAS
A5: (Cifras expresadas en guaraníes)
A7: Conceptos | B7: 2020-03-01 | C7: 2019-12-01
A8: ACTIVO
A9: Cartera de créditos | B9: 1.165473986e+10 | C9: 11289171013
A10: Otros créditos | B10: 260094864 | C10: 60769479
A11: Propiedades, planta y equipo/Bienes de uso, neto | B11: 21818182 | C11: 0
A12: Total Activo | B12: =SUM(B9:B11) -> 1.19366529e+10 | C12: =SUM(C9:C11) -> 11349940492
A13: PASIVO
A14: Préstamos | B14: 7.915425015e+10 | C14: 87697362804
A15: Cuentas por pagar comerciales | B15: 0 | C15: 749744146
A16: Total Pasivo | B16: =SUM(B14:B15) -> 7.915425015e+10 | C16: =SUM(C14:C15) -> 88447106950
A21: INGRESOS | B21: 2020-03-01 | C21: 2019-03-01
A22: Ventas | B22: 3592170748 | C22: 11890717
A23: Total Ingresos | B23: =SUM(B22) -> 3592170748 | C23: =SUM(C22) -> 11890717
A24: EGRESOS
A25: Costo de ventas | B25: 4172664145 | C25: 0
A26: Gastos administrativos | B26: 871718499 | C26: 264626865
A27: Gastos financieros | B27: 344248825 | C27: 0
A28: Total Egresos | B28: =SUM(B25:B27) -> 5388631469 | C28: =SUM(C25:C27) -> 264626865

Sheet Base de Monedas
A1: PYG | B1: Guaraní | C1: Índice
A2: USD | B2: Dólar estadounidense
A3: EUR | B3: Euro
A4: AED | B4: Dírham de los Emiratos Árabes Unidos
A5: AFN | B5: Afgani
A6: ALL | B6: Lek
A7: AMD | B7: Dram armenio
A8: ANG | B8: Florín antillano neerlandés
A9: AOA | B9: Kwanza
A10: ARS | B10: Peso argentino
A11: AUD | B11: Dólar australiano
A12: AWG | B12: Florín arubeño
A13: AZN | B13: Manat azerbaiyano
A14: BAM | B14: Marco convertible
A15: BBD | B15: Dólar de Barbados
A16: BDT | B16: Taka
A17: BGN | B17: Lev búlgaro
A18: BHD | B18: Dinar bareiní
A19: BIF | B19: Franco de Burundi
A20: BMD | B20: Dólar bermudeño
A21: BND | B21: Dólar de Brunéi
A22: BOB | B22: Boliviano
A23: BOV | B23: MVDOL
A24: BRL | B24: Real brasileño
A25: BSD | B25: Dólar bahameño
A26: BTN | B26: Ngultrum
A27: BWP | B27: Pula
A28: BYN | B28: Rublo bielorruso
A29: BZD | B29: Dólar beliceño
A30: CAD | B30: Dólar canadiense
A31: CDF | B31: Franco congoleño
A32: CHE | B32: Euro WIR
A33: CHF | B33: Franco suizo
A34: CHW | B34: Franco WIR
A35: CLF | B35: Unidad de fomento
A36: CLP | B36: Peso chileno
A37: CNY | B37: Yuan chino
A38: COP | B38: Peso colombiano
A39: COU | B39: Unidad de valor real
A40: CRC | B40: Colón costarricense
A41: CUC | B41: Peso convertible
A42: CUP | B42: Peso cubano
A43: CVE | B43: Escudo caboverdiano
A44: CZK | B44: Corona checa
A45: DJF | B45: Franco yibutiano
A46: DKK | B46: Corona danesa
A47: DOP | B47: Peso dominicano
A48: DZD | B48: Dinar argelino
A49: EGP | B49: Libra egipcia
A50: ERN | B50: Nakfa
A51: ETB | B51: Birr etíope
A52: FJD | B52: Dólar fiyiano
A53: FKP | B53: Libra malvinense
A54: GBP | B54: Libra esterlina
A55: GEL | B55: Lari
A56: GHS | B56: Cedi ghanés
A57: GIP | B57: Libra de Gibraltar
A58: GMD | B58: Dalasi
A59: GNF | B59: Franco guineano
A60: GTQ | B60: Quetzal
A61: GYD | B61: Dólar guyanés
A62: HKD | B62: Dólar de Hong Kong
A63: HNL | B63: Lempira
A64: HRK | B64: Kuna
A65: HTG | B65: Gourde
A66: HUF | B66: Forinto
A67: IDR | B67: Rupia indonesia
A68: ILS | B68: Nuevo shéquel israelí
A69: INR | B69: Rupia india
A70: IQD | B70: Dinar iraquí
A71: IRR | B71: Rial iraní
A72: ISK | B72: Corona islandesa
A73: JMD | B73: Dólar jamaiquino
A74: JOD | B74: Dinar jordano
A75: JPY | B75: Yen
A76: KES | B76: Chelín keniano
A77: KGS | B77: Som
A78: KHR | B78: Riel
A79: KMF | B79: Franco comorense
A80: KPW | B80: Won norcoreano
A81: KRW | B81: Won
A82: KWD | B82: Dinar kuwaití
A83: KYD | B83: Dólar de las Islas Caimán
A84: KZT | B84: Tenge
A85: LAK | B85: Kip
A86: LBP | B86: Libra libanesa
A87: LKR | B87: Rupia de Sri Lanka
A88: LRD | B88: Dólar liberiano
A89: LSL | B89: Loti
A90: LYD | B90: Dinar libio
A91: MAD | B91: Dírham marroquí
A92: MDL | B92: Leu moldavo
A93: MGA | B93: Ariary malgache
A94: MKD | B94: Denar
A95: MMK | B95: Kyat
A96: MNT | B96: Tugrik
A97: MOP | B97: Pataca
A98: MRU | B98: Uguiya
A99: MUR | B99: Rupia de Mauricio
A100: MVR | B100: Rufiyaa
A101: MWK | B101: Kwacha
A102: MXN | B102: Peso mexicano
A103: MXV | B103: Unidad de Inversión (UDI) mexicana
A104: MYR | B104: Ringgit malayo
A105: MZN | B105: Metical mozambiqueño
A106: NAD | B106: Dólar namibio
A107: NGN | B107: Naira
A108: NIO | B108: Córdoba
A109: NOK | B109: Corona noruega
A110: NPR | B110: Rupia nepalí
A111: NZD | B111: Dólar neozelandés
A112: OMR | B112: Rial omaní
A113: PAB | B113: Balboa
A114: PEN | B114: Sol
A115: PGK | B115: Kina
A116: PHP | B116: Peso filipino
A117: PKR | B117: Rupia pakistaní
A118: PLN | B118: Złoty
A119: QAR | B119: Riyal qatarí
A120: RON | B120: Leu rumano
A121: RSD | B121: Dinar serbio
A122: RUB | B122: Rublo ruso
A123: RWF | B123: Franco ruandés
A124: SAR | B124: Riyal saudí
A125: SBD | B125: Dólar de las Islas Salomón
A126: SCR | B126: Rupia seychelense
A127: SDG | B127: Dinar sudanés
A128: SEK | B128: Corona sueca
A129: SGD | B129: Dólar de Singapur
A130: SHP | B130: Libra de Santa Elena
A131: SLL | B131: Leone
A132: SOS | B132: Chelín somalí
A133: SRD | B133: Dólar surinamés
A134: SSP | B134: Libra sursudanesa
A135: STN | B135: Dobra
A136: SVC | B136: Colon Salvadoreño
A137: SYP | B137: Libra siria
A138: SZL | B138: Lilangeni
A139: THB | B139: Baht
A140: TJS | B140: Somoni tayiko
A141: TMT | B141: Manat turcomano
A142: TND | B142: Dinar tunecino
A143: TOP | B143: Paʻanga
A144: TRY | B144: Lira turca
A145: TTD | B145: Dólar de Trinidad y Tobago
A146: TWD | B146: Nuevo dólar taiwanés
A147: TZS | B147: Chelín tanzano
A148: UAH | B148: Grivna
A149: UGX | B149: Chelín ugandés
A150: USN | B150: Dólar estadounidense (Siguiente día)
A151: UYI | B151: Peso en Unidades Indexadas (Uruguay)
A152: UYU | B152: Peso uruguayo
A153: UYW | B153: Unidad Previsional
A154: UZS | B154: Som uzbeko
A155: VES7​ | B155: Bolívar soberano
A156: VND | B156: Dong vietnamita
A157: VUV | B157: Vatu
A158: WST | B158: Tala
A159: XAF | B159: Franco CFA de África Central
A160: XAG | B160: Plata (una onza troy)
A161: XAU | B161: Oro (una onza troy)
A162: XBA | B162: Unidad compuesta europea (EURCO) (Unidad del mercados de bonos)
A163: XBB | B163: Unidad Monetaria europea (E.M.U.-6) (Unidad del mercado de bonos)
A164: XBC | B164: Unidad europea de cuenta 9 (E.U.A.-9) (Unidad del mercado de bonos)
A165: XBD | B165: Unidad europea de cuenta 17 (E.U.A.-17) (Unidad del mercado de bonos)
A166: XCD | B166: Dólar del Caribe Oriental
A167: XDR | B167: Derechos especiales de giro
A168: XOF | B168: Franco CFA de África Occidental
A169: XPD | B169: Paladio (una onza troy)
A170: XPF | B170: Franco CFP
A171: XPT | B171: Platino (una onza troy)
A172: XSU | B172: SUCRE
A173: XTS | B173: Reservado para pruebas
A174: XUA | B174: Unidad de cuenta BAD
A175: XXX | B175: Sin divisa
A176: YER | B176: Rial yemení
A177: ZAR | B177: Rand
A178: ZMW | B178: Kwacha zambiano
A179: ZWL | B179: Dólar zimbabuense
